{"text_format":"1","workbook":"xlsx","n_sheets":9,"sheets":["Übersetzungstabelle","Übersicht","Wand-Decke_1-seitig","Wand-Decke_2-seitig","Decke_1-seitig_Festflügel","Decke_2-seitig_Festflügel","Wand_mit_Zarge_1-seitig","Wand-Decke_1-seitig_Schliessk","Decke_1-seitig_Schliessk"],"not_rendered":{"charts":0,"images":32,"macros":1,"external_links":2,"defined_names":18,"comments":1,"pivot_tables":0},"unopened":[],"bounds":{"document_bytes":16777216,"sheet_cells":100000,"rows_first":2000,"rows_last":500,"rows_between":2000,"halvings":0,"cell_chars":16384,"cell_head_chars":4096},"cells_cut":0,"cells_raw":0,"read":"whole","date_system":"1900"}

{"sheet":"Übersetzungstabelle","index":0,"n_rows":110,"n_cols":5,"rows_kept":110,"cut":false,"hidden":true,"merged":[[0,2,0,5]]}
["Auswahl:",2,"Für Englisch Trennzeichen über Optionen - Erweitert - Trennzeichen…. Automatisch anpassen\nBei Sprachänderung Dropdown für BW-Pr. Aktualisieren"]
[]
[null,1,2,3,4]
[{"$f":"IF($B$1=$B$3,B4,IF($B$1=$C$3,C4, IF($B$1=$D$3,D4, IF($B$1=$E$3,E4,\"Error!\"))))","v":"Englisch"},"Deutsch","Englisch","Französisch","Spanisch"]
[{"$f":"IF($B$1=$B$3,B5,IF($B$1=$C$3,C5, IF($B$1=$D$3,D5, IF($B$1=$E$3,E5,\"Error!\"))))","v":"Glass fittings with logic"},"Glasbeschläge mit System","Glass fittings with logic","Ferrures pour verre innovatrices","Herraje innovador para vidrio"]
["Portavant G 120: profile and glass dimensions calculator","Portavant G 120: Profil- und Glasmaßrechner","Portavant G 120: profile and glass dimensions calculator","Portavant G 120 : calculateur de dimensions des profilés et vantaux","Portavant G 120: calculadora de perfiles y dimensiones"]
["Please select the appropriate category:","Bitte wählen Sie die zutreffende Kategorie aus:","Please select the appropriate category:","Veuillez sélectionner la catégorie appropriée:","Seleccione la categoría adecuada:"]
["Installation situations without sidelight","Einbausituationen ohne Festflügel","Installation situations without sidelight","Configurations de pose sans vantail fixe","Situaciones de montaje sin hoja fija"]
["Installation situations with sidelight","Einbausituationen mit Festflügel","Installation situations with sidelight","Configurations de pose avec vantail fixe","Situaciones de montaje con hoja fija"]
["Wall mounting","Wandmontage","Wall mounting","Montage mural","Montaje a pared"]
["with door frame","mit Zarge","with door frame","avec chambranle de porte","con marco de puerta"]
["Wall/\nCeiling mounting","Wand-/\nDeckenmontage","Wall/\nCeiling mounting","Montage mural /\nau plafond","Montaje a pared/\ntecho"]
["Ceiling mounting","Deckenmontage","Ceiling mounting","Montage au plafond","Montaje a techo"]
["with door stop\nprofiles","mit Anschlag-/\nSchließkasten","with door stop\nprofiles","avec profilés\nd'arrêt","con perfiles\nde tope"]
["1-sided","1-seitig","1-sided","unilatéral","unilateral"]
["2-sided","2-seitig","2-sided","bilatéral","bilateral"]
["Select","Auswählen","Select","Sélectionner","Seleccionar"]
[0]
["Portavant G 120 : wall mounting with door frame, one-sided (without door stop profiles)","Portavant G 120: Wandmontage mit Zarge, einseitig (ohne Anschlag-/Schließkasten)","Portavant G 120 : wall mounting with door frame, one-sided (without door stop profiles)","Portavant G 120 : montage mural avec chambranle de porte, unilatéral (sans profilés d'arrêt)","Portavant G 120: montaje a pared con marco de puerta, unilateral (sin perfiles de tope)"]
["Portavant G 120: wall/ceiling mounting without sidelight, one-sided (without door stop profiles and without door frame)","Portavant G 120: Wandmontage/Deckenmontage ohne Festflügel, einseitig (ohne Anschlag-/Schließkasten und ohne Zarge)","Portavant G 120: wall/ceiling mounting without sidelight, one-sided (without door stop profiles and without door frame)","Portavant G 120 : montage mural / plafond sans vantail fixe, unilatéral (sans profilés d'arrêt et sans chambranle de porte)","Portavant G 120: montaje a pared / techo sin hoja fija, unilateral (sin perfiles de tope y sin marco de puerta)"]
["Portavant G 120: wall/ceiling mounting without sidelight, two-sided","Portavant G 120: Wandmontage/Deckenmontage ohne Festflügel, zweiseitig","Portavant G 120: wall/ceiling mounting without sidelight, two-sided","Portavant G 120 : montage mural / plafond sans vantail fixe, bilatéral","Portavant G 120: montaje a pared / techo sin hoja fija, bilateral"]
["Portavant G 120: ceiling mounting with sidelight, one-sided (without door stop profiles)","Portavant G 120: Deckenmontage mit Festflügel, einseitig (ohne Anschlag-/Schließkasten)","Portavant G 120: ceiling mounting with sidelight, one-sided (without door stop profiles)","Portavant G 120 : montage plafond avec vantail fixe, unilatéral (sans profilés d'arrêt)","Portavant G 120: montaje a techo con hoja fija, unilateral (sin perfiles de tope)"]
["Portavant G 120: ceiling mounting with sidelight, two-sided","Portavant G 120: Deckenmontage mit Festflügel, zweiseitig","Portavant G 120: ceiling mounting with sidelight, two-sided","Portavant G 120 : montage plafond avec vantail fixe, bilatéral","Portavant G 120: montaje a techo con hoja fija, bilateral"]
[{"$f":"IF($B$1=$B$3,B24,IF($B$1=$C$3,C24, IF($B$1=$D$3,D24, IF($B$1=$E$3,E24,\"Error!\"))))","v":"Portavant G 120: wall mounting, one-sided with door stop profiles"},"Portavant G 120: Wandmontage, einseitig mit Anschlag-/Schließkasten","Portavant G 120: wall mounting, one-sided with door stop profiles","Portavant G 120 : montage mural, unilatéral avec profilés d'arrêt","Portavant G 120: montaje a pared, unilateral con perfiles de tope"]
["Portavant G 120: ceiling mounting with sidelight, one-sided with door stop profiles","Portavant G 120: Deckenmontage mit Festflügel, einseitig mit Anschlag-/Schließkasten","Portavant G 120: ceiling mounting with sidelight, one-sided with door stop profiles","Portavant G 120 : montage plafond avec vantail fixe, unilatéral avec profilés d'arrêt","Portavant G 120: montaje a techo con hoja fija, unilateral con perfiles de tope"]
[0]
["User input","Benutzer-Eingabe","User input","Saisie utilisateur","Entrada del usuario"]
[0]
["Invalid entry!","Unzulässige Eingabe!","Invalid entry!","Entrée invalide!","¡Entrada invalida!"]
["Please enter a whole number greater than or equal to zero.","Bitte geben Sie eine ganze Zahl größer oder gleich Null ein.","Please enter a whole number greater than or equal to zero.","Veuillez saisir un nombre entier supérieur ou égal à zéro.","Ingresa un número entero mayor o igual a cero."]
["The weight must be a decimal number greater than or equal to zero [kg].","Das Gewicht muss eine Dezimalzahl größer oder gleich Null sein [kg].","The weight must be a decimal number greater than or equal to zero [kg].","Le poids doit être un nombre décimal supérieur ou égal à zéro [kg].","El peso debe ser un número decimal mayor o igual a cero [kg]."]
["Please select from the drop-down list.","Bitte wählen Sie aus der Drop-Down-Liste aus.","Please select from the drop-down list.","Veuillez sélectionner dans la liste déroulante.","Seleccione de la lista desplegable."]
["Max. profile length = …","Max. Profillänge = …","Max. profile length = …","Longueur max. du profilé = …","Longitud máx. de perfil = …"]
[0]
["clear width (building)","Lichte Weite (bauseits)","clear width (building)","largeur d'ouverture (baie)","apertura útil (edificación)"]
["system height","Systemhöhe","system height","hauteur du système","altura total del sistema"]
["glass thickness of sliding sash","Glasstärke Schiebeflügel","glass thickness of sliding sash","épaisseur du verre du vantail coulissant","espesor de vidrio de la hoja corredera"]
["width of door frame","Zargenbreite","width of door frame","largeur du chambranle de porte","ancho del marco de puerta"]
["glass thickness of sidelight","Glasstärke Festflügel","glass thickness of sidelight","épaisseur du verre du vantail fixe","espesor de vidrio de la hoja fija"]
["additional width of sliding sash\nfor handle","Zusatzbreite Schiebeflügel\nfür Griff","additional width of sliding sash\nfor handle","largeur supplémentaire du vantail coulissant\npour la poignée","ancho adicional de la hoja corredera\npara pomo"]
["additional width of sidelight","Zusatzbreite Festflügel","additional width of sidelight","largeur supplémentaire du vantail fixe","ancho adicional de la hoja fija"]
["additional width of sidelight\n(≥ 3 mm)","Zusatzbreite Festflügel\n(≥ 3 mm)","additional width of sidelight\n(≥ 3 mm)","largeur supplémentaire du vantail fixe\n(≥ 3 mm)","ancho adicional de la hoja fija\n(≥ 3 mm)"]
["weight of handle","Gewicht Griff","weight of handle","poids de la poignée","peso de pomo"]
["Would you like to use a floor-wall profile (U profile) horizontally on the floor?","Möchten Sie ein Boden-Wand-Profil waagerecht am Boden verwenden?","Would you like to use a floor-wall profile (U profile) horizontally on the floor?","Souhaitez-vous utiliser un profilé de mur-sol (profilé en U) horizontalement au sol?","¿Le gustaría utilizar un perfil de suelo/pared horizontalmente a suelo?"]
["Would you like to use a floor-wall profile (U profile) vertically to attach the sidelight to the wall?","Möchten Sie ein Boden-Wand-Profil zur senkrechten Befestigung des Festflügels an der Wand verwenden?","Would you like to use a floor-wall profile (U profile) vertically to attach the sidelight to the wall?","Souhaitez-vous utiliser un profilé mur-sol (profilé en U) verticalement pour fixer le vantail fixe au mur?","¿Le gustaría utilizar un perfil de suelo/pared verticalmente para fijar la hoja fija a pared?"]
["Would you like to use a floor-wall profile (U profile) vertically to attach the sidelights to the wall?","Möchten Sie ein Boden-Wand-Profil zur senkrechten Befestigung der Festflügel an der Wand verwenden?","Would you like to use a floor-wall profile (U profile) vertically to attach the sidelights to the wall?","Souhaitez-vous utiliser un profilé mur-sol (profilé en U) verticalement pour fixer les vantaux fixes au mur?","¿Le gustaría utilizar un perfil de suelo/pared verticalmente para fijar las hojas fijas a pared?"]
["Yes","Ja","Yes","Oui","Si"]
["No","Nein","No","Non","No"]
[0]
["Formulas","Formeln","Formulas","Formules","Fórmulas"]
["(The planning criteria to determine the number of spacer profiles required can be found in the article/price list.)","(Die Planungsgrundlagen zur Bestimmung der Menge der benötigten Distanzprofile finden Sie in der Artikel-/Preisliste.)","(The planning criteria to determine the number of spacer profiles required can be found in the article/price list.)","(Les bases de calcul pour déterminer le nombre de profilés d'écartement requis se trouvent dans la liste d'articles / le tarif.)","(Los principios de planificación para determinar el número necesario de perfiles de distancia se puede encontrar en la lista de artículs / tarifa.)"]
[0]
["Automatic calculation of glass dimensions and profile lengths","Auto-Berechnung Glasmaße und Profillänge","Automatic calculation of glass dimensions and profile lengths","Calcul automatique des dimensions du verre et des longueurs des profilés","Cálculo automático de dimensiones de vidrio y longitudes de los perfiles"]
["Length in mm","Länge in mm","Length in mm","Longueur en mm","Longitud en mm"]
["Qty. in pcs.","Menge in St.","Qty. in pcs.","Qté. en pcs.","Cantidad en piezas"]
["per","je","per","par","por"]
["glass height of sliding sash","Glashöhe Schiebeflügel","glass height of sliding sash","hauteur du verre du vantail coulissant","altura de vidrio de la hoja corredera"]
["glass height of sidelight","Glashöhe Festflügel","glass height of sidelight","hauteur du verre du vantail fixe","altura de vidrio de la hoja fija"]
["glass width of sliding sash","Glasbreite Schiebeflügel","glass width of sliding sash","largeur du verre du vantail coulissant","ancho de vidrio de la hoja corredera"]
["glass width of sidelight","Glasbreite Festflügel","glass width of sidelight","largeur du verre du vantail fixe","ancho de vidrio de la hoja fija"]
["length of track/cover profile","Länge Laufschiene/Blende","length of track/cover profile","longueur rail de roulement / capot","longitud de riel de rodamiento/tapeta"]
["length of track/cover/spacer profile(s)","Länge Laufschiene/Blende/Distanzprofil(e)","length of track/cover/spacer profile(s)","longueur rail de roulement / capot / profilé(s) d'écartement","longitud de riel de rodamiento/tapeta/perfil(es) de distancia"]
["length of door stop profiles","Länge Anschlag-/Schließkasten","length of door stop profiles","longueur profilés d'arrêt","longitud de perfiles de tope"]
["length of infill profile","Länge Abdeckprofil","length of infill profile","longueur profilé de recouvrement","longitud de perfil de cubrimiento"]
["length of floor-wall profile on the floor","Länge Boden-Wand-Profil unten","length of floor-wall profile on the floor","longueur profilé de mur-sol en bas","longitud de perfil de suelo/pared abajo"]
["lengths of floor-wall profiles on the floor","Längen Boden-Wand-Profile unten","lengths of floor-wall profiles on the floor","longueurs profilés de mur-sol en bas","longitudes de perfiles de suelo/pared abajo"]
["length of floor-wall profile on the wall","Länge Boden-Wand-Profil seitlich","length of floor-wall profile on the wall","longueur profilé de mjur-sol latéral","longitud de perfil de suelo/pared lateral"]
["lengths of floor-wall profiles on the wall","Längen Boden-Wand-Profile seitlich","lengths of floor-wall profiles on the wall","longueurs profilés de mur-sol latéral","longitudes de perfiles de suelo/pared lateral"]
["approx. length of silicone gasket type 1 (item no. 617 254…)","Ungefähre Länge Silikonband Typ 1 (Art.-Nr. 617 254…)","approx. length of silicone gasket type 1 (item no. 617 254…)","longueur approx. bande silicone type 1 (réf. 617 254…)","longitud aprox. cinta de silicona tipo 1 (n.° de artículo 617 254…)"]
["approx. length of silicone gasket type 2 (item no. 617 255…)","Ungefähre Länge Silikonband Typ 2 (Art.-Nr. 617 255…)","approx. length of silicone gasket type 2 (item no. 617 255…)","longueur approx. bande silicone type 2 (réf. 617 255…)","longitud aprox. cinta de silicona tipo 2 (n.° de artículo 617 255…)"]
["approx. length of silicone gasket type 3 (item no. 617 256…)","Ungefähre Länge Silikonband Typ 3 (Art.-Nr. 617 256…)","approx. length of silicone gasket type 3 (item no. 617 256…)","longueur approx. bande silicone type 3 (réf. 617 256…)","longitud aprox. cinta de silicona tipo 3 (n.° de artículo 617 256…)"]
["For information:","Zur Information:","For information:","Pour information:","Para información:"]
["clear width (door passage)","Lichte Weite (Türdurchgang)","clear width (door passage)","largeur de passage","apertura útil (paso de la puerta)"]
[0]
["Glass dimensions of sliding sash","Glasmaße Schiebeflügel","Glass dimensions of sliding sash","Dimensions du verre du vantail coulissant","Dimensiones de vidrio de la hoja corredera"]
["(Glass cutouts/drillings for handles and/or mechanical locks might probably\nbe required.)","(Ggf. Glasbohrungen für Griffe und/oder mechanische Schlösser erforderlich.)","(Glass cutouts/drillings for handles and/or mechanical locks might probably\nbe required.)","(En cas de poignées et/ou de serrure mécanique des perçages sont nécessaires.)"]
["Note","Bemerkung","Note","Remarque","Nota"]
["Glass dimensions of sidelight","Glasmaße Festflügel","Glass dimensions of sidelight","Dimensions du verre du vantail fixe","Dimensiones de vidrio de la hoja fija"]
[0]
["Check of sash weight, height-width ratio and\nminimum sash width","Überprüfung Flügelgewicht, Aspektverhältnis und\nMindestflügelbreite","Check of sash weight, height-width ratio and\nminimum sash width","Contrôle du poids du vantail, du rapport hauteur / largeur et\nde la largeur minimale du vantail","Comprobación del peso de la hoja, la relación de aspecto y \nel ancho mínimo de la hoja"]
["Okay.","Okay.","Okay.","Ok","OK."]
["Error!","Falsch!","Error!","Invalide!","¡Error!"]
["Weight of sliding sash with handle (≤ 120 kg)","Flügelgewicht Schiebeflügel mit Griff (≤ 120 kg)","Weight of sliding sash with handle (≤ 120 kg)","Poids du vantail coulissant poignée inclue (≤ 120 kg)","Peso de la hoja corredera (≤ 120 kg)"]
["Attention: the maximum permissible sash weight is exceeded!","Achtung: Das maximal zulässige Flügelgewicht wird überschritten!","Attention: the maximum permissible sash weight is exceeded!","Attention: le poids du vantail maximal autorisé est dépassé!","Atención: ¡Se supera el peso máximo de hoja permitido!"]
["Height-width ratio of the sliding sash (≤ 3)","Verhältnis von Höhe zu Breite des Schiebeflügels (≤ 3)","Height-width ratio of the sliding sash (≤ 3)","Rapport hauteur/largeur du vantail coulissant (≤ 3)","Relación altura/ancho de la hoja corredera (≤ 3)"]
["Height-width ratio of the sliding sashes (≤ 3)","Verhältnis von Höhe zu Breite der Schiebeflügel (≤ 3)","Height-width ratio of the sliding sashes (≤ 3)","Rapport hauteur/largeur des vantaux coulissants (≤ 3)","Relación altura/ancho de las hojas correderas (≤ 3)"]
["Attention: the maximum permissible height-width ratio of 3:1 is exceeded!","Achtung: Das max. zulässige Aspektverhältnis von 3 : 1 wird überschritten!","Attention: the maximum permissible height-width ratio of 3:1 is exceeded!","Attention: le rapport hauteur / largeur maximal autorisé (3 : 1) est dépassé!","Atención: ¡Se supera la relación de aspecto máximo permitido!"]
["Glass width of sliding sash (≥ 580 mm)","Glasbreite Schiebeflügel (≥ 580 mm)","Glass width of sliding sash (≥ 580 mm)","Largeur du verre du vantail coulissant (≥ 580 mm)","Ancho de vidrio de la hoja corredera (≥ 580 mm)"]
["Attention: the glass width of the sliding sash is too small (minimum sash width = 580 mm)!","Achtung: Die Glasbreite des Schiebeflügels ist zu gering (Mindestglasbreite Schiebeflügel 580 mm)!","Attention: the glass width of the sliding sash is too small (minimum sash width = 580 mm)!","Attention: la largeur du verre du vantail coulissant est trop étroite (largeur minimale = 580 mm)!","Atención: ¡El ancho del vidrio de la hoja corredera es demasiado pequeño (ancho minimo = 580 mm)!"]
[0]
["Legend","Legende","Legend","Légende","Leyenda"]
["H = system height\nHS = glass height of sliding sash\nHP = profile height\nLS = length of track/cover profile\nLK = length of door stop profiles\nLW = clear width (building)\nLWt = clear width (door passage)\nWS = glass width of sliding sash (with handle)\nWSZ = additional width of sliding sash for handle","H = Systemhöhe\nHS = Glashöhe Schiebeflügel\nHP = Höhe Profil\nLS = Länge Laufschiene/Blende\nLK = Länge Anschlag-/Schließkasten\nLW = Lichte Weite (bauseits)\nLWt = Lichte Weite (Türdurchgang)\nWS = Glasbreite Schiebeflügel (mit Griff)\nWSZ = Zusatzbreite Schiebeflügel für Griff","H = system height\nHS = glass height of sliding sash\nHP = profile height\nLS = length of track/cover profile\nLK = length of door stop profiles\nLW = clear width (building)\nLWt = clear width (door passage)\nWS = glass width of sliding sash (with handle)\nWSZ = additional width of sliding sash for handle","H = hauteur du système\nHS = hauteur du verre du vantail coulissant\nHP = hauteur du profilé\nLS = longueur du rail de roulement / du capot\nLK = longueur des profilés d'arrêt\nLW = largeur d'ouverture (baie)\nLWt = largeur de passage\nWS = largeur du verre du vantail coulissant (avec poignée)\nWSZ = largeur supplémentaire du vantail coulissant pour poignée","H = altura total del sistema\nHS = altura de vidrio de la hoja corredera\nHP = altura del perfil\nLS = longitud del riel de rodamiento/de la tapeta\nLK = longitud de los perfiles de tope\nLW = apertura útil (edificación)\nLWt = apertura útil (paso de la puerta)\nWS = ancho de vidrio de la hoja corredera (con pomo)\nWSZ = ancho adicional para pomo"]
["H = system height\nHF = glass height of sidelight\nHS = glass height of sliding sash\nHP = profile height\nLS = length of track/cover profile\nLK = length of door stop profiles\nLW = clear width (building)\nLWt = clear width (door passage)\nWF = glass width of sidelight\nWS = glass width of sliding sash (with handle)\nWFZ = additional width of sidelight\nWSZ = additional width of sliding sash for handle","H = Systemhöhe\nHF = Glashöhe Festflügel\nHS = Glashöhe Schiebeflügel\nHP = Höhe Profil\nLS = Länge Laufschiene/Blende\nLK = Länge Anschlag-/Schließkasten\nLW = Lichte Weite (bauseits)\nLWt = Lichte Weite (Durchgangsbreite)\nWF = Glasbreite Festflügel\nWS = Glasbreite Schiebeflügel (mit Griff)\nWFZ = Zusatzbreite Festflügel\nWSZ = Zusatzbreite Schiebeflügel für Griff","H = system height\nHF = glass height of sidelight\nHS = glass height of sliding sash\nHP = profile height\nLS = length of track/cover profile\nLK = length of door stop profiles\nLW = clear width (building)\nLWt = clear width (door passage)\nWF = glass width of sidelight\nWS = glass width of sliding sash (with handle)\nWFZ = additional width of sidelight\nWSZ = additional width of sliding sash for handle","H = hauteur du système\nHF = hauteur du verre du vantail fixe\nHS = hauteur du verre du vantail coulissant\nHP = hauteur du profilé\nLS = longueur du rail de roulement / du capot\nLK = longueur des profilés d'arrêt\nLW = largeur d'ouverture (baie)\nLWt = largeur de passage\nWF = largeur du verre du vantail fixe\nWS = largeur du verre du vantail coulissant (avec poignée)\nWFZ = largeur supplémentaire du vantail fixe\nWSZ = largeur supplémentaire du vantail coulissant pour poignée","H = altura total del sistema\nHF = altura de vidrio de la hoja fija\nHS = altura de vidrio de la hoja corredera\nHP = altura del perfil\nLS = longitud del riel de rodamiento/de la tapeta\nLK = longitud de los perfiles de tope\nLW = apertura útil (edificación)\nLWt = apertura útil (paso de la puerta)\nWF = ancho de vidrio de la hoja fija\nWS = ancho de vidrio de la hoja corredera (con pomo)\nWFZ = ancho adicional de la hoja fija\nWSZ = ancho adicional para pomo"]
["H = system height\nHS = glass height of sliding sash\nLS = length of track/cover profile\nLW = clear width (building)\nLWt = clear width (door passage)\nWS = glass width of sliding sash (with handle)\nWSZ = additional width of sliding sash for handle","H = Systemhöhe\nHS = Glashöhe Schiebeflügel\nLS = Länge Laufschiene/Blende\nLW = Lichte Weite (bauseits)\nLWt = Lichte Weite (Durchgangsbreite)\nWS = Glasbreite Schiebeflügel (mit Griff)\nWSZ = Zusatzbreite Schiebeflügel für Griff","H = system height\nHS = glass height of sliding sash\nLS = length of track/cover profile\nLW = clear width (building)\nLWt = clear width (door passage)\nWS = glass width of sliding sash (with handle)\nWSZ = additional width of sliding sash for handle","H = hauteur du système\nHS = hauteur du verre du vantail coulissant\nLS = longueur du rail de roulement / du capot\nLW = largeur d'ouverture (baie)\nLWt = largeur de passage\nWS = largeur du verre du vantail coulissant (avec poignée)\nWSZ = largeur supplémentaire du vantail coulissant pour poignée","H = altura total del sistema\nHS = altura de vidrio de la hoja corredera\nLS = longitud del riel de rodamiento/de la tapeta\nLW = apertura útil (edificación)\nLWt = apertura útil (paso de la puerta)\nWS = ancho de vidrio de la hoja corredera (con pomo)\nWSZ = ancho adicional para pomo"]
["H = system height\nHS = glass height of sliding sash\nHP = profile height\nHZ = upper edge of door frame\nLS = length of track/cover profile\nLW = clear width (building)\nLWt = clear width (door passage)\nWS = glass width of sliding sash (with handle)\nWSZ = additional width of sliding sash for handle\nZB = width of door frame","H = Systemhöhe\nHS = Glashöhe Schiebeflügel\nHP = Profilhöhe\nHZ = Oberkante Zarge\nLS = Länge Laufschiene/Blende\nLW = Lichte Weite (bauseits)\nLWt = Lichte Weite (Durchgangsbreite)\nWS = Glasbreite Schiebeflügel (mit Griff)\nWSZ = Zusatzbreite Schiebeflügel für Griff\nZB = Zargenbreite","H = system height\nHS = glass height of sliding sash\nHP = profile height\nHZ = upper edge of door frame\nLS = length of track/cover profile\nLW = clear width (building)\nLWt = clear width (door passage)\nWS = glass width of sliding sash (with handle)\nWSZ = additional width of sliding sash for handle\nZB = width of door frame","H = hauteur du système\nHS = hauteur du verre du vantail coulissant\nHP = hauteur du profilé\nHZ = bord supérieur du chambranle de porte\nLS = longueur du rail de roulement / du capot\nLW = largeur d'ouverture (baie)\nLWt = largeur de passage\nWS = largeur du verre du vantail coulissant (avec poignée)\nWSZ = largeur supplémentaire du vantail coulissant pour poignée\nZB = largeur du chambranle de porte","H = altura total del sistema\nHS = altura de vidrio de la hoja corredera\nHP = altura del perfil\nHZ = borde superior del marco de puerta\nLS = longitud del riel de rodamiento/de la tapeta\nLW = apertura útil (edificación)\nLWt = apertura útil (paso de la puerta)\nWS = ancho de vidrio de la hoja corredera (con pomo)\nWSZ = ancho adicional para pomo\nZB = ancho del marco de puerta"]
["H = system height\nHF = glass height of sidelight\nHS = glass height of sliding sash\nLS = length of track/cover profile\nLW = clear width (building)\nLWt = clear width (door passage)\nWF = glass width of sidelight\nWS = glass width of sliding sash (with handle)\nWFZ = additional width of sidelight\nWSZ = additional width of sliding sash for handle","H = Systemhöhe\nHF = Glashöhe Festflügel\nHS = Glashöhe Schiebeflügel\nLS = Länge Laufschiene/Blende\nLW = Lichte Weite (bauseits)\nLWt = Lichte Weite (Durchgangsbreite)\nWF = Glasbreite Festflügel\nWS = Glasbreite Schiebeflügel (mit Griff)\nWFZ = Zusatzbreite Festflügel\nWSZ = Zusatzbreite Schiebeflügel für Griff","H = system height\nHF = glass height of sidelight\nHS = glass height of sliding sash\nLS = length of track/cover profile\nLW = clear width (building)\nLWt = clear width (door passage)\nWF = glass width of sidelight\nWS = glass width of sliding sash (with handle)\nWFZ = additional width of sidelight\nWSZ = additional width of sliding sash for handle","H = hauteur du système\nHF = hauteur du verre du vantail fixe\nHS = hauteur du verre du vantail coulissant\nLS = longueur du rail de roulement / du capot\nLW = largeur d'ouverture (baie)\nLWt = largeur de passage\nWF = largeur du verre du vantail fixe\nWS = larguer du verre du vantail coulissant (avec poignée)\nWFZ = largeur supplémentaire du vantail fixe\nWSZ = largeur supplémentaire du vantail coulissant pour poignée","H = altura total del sistema\nHF = altura de vidrio de la hoja fija\nHS = altura de vidrio de la hoja corredera\nLS = longitud del riel de rodamiento/de la tapeta\nLW = apertura útil (edificación)\nLWt = apertura útil (paso de la puerta)\nWF = ancho de vidrio de la hoja fija\nWS = ancho de vidrio de la hoja corredera (con pomo)\nWFZ = ancho adicional de la hoja fija\nWSZ = ancho adicional para pomo\n"]
[{"$f":"IF($B$1=$B$3,B97,IF($B$1=$C$3,C97, IF($B$1=$D$3,D97, IF($B$1=$E$3,E97,\"Error!\"))))","v":"H = system height\nHF = glass height of sidelight\nHS = glass height of sliding sash\nHP = profile height\nLS = length of track/cover profile\nLK = length of door stop profiles\nLW = clear width (building)\nLWt = clear width (door passage)\nWF = glass width of sidelight\nWS = glass width of sliding sash (with handle)\nWFZ = additional width of sidelight\nWSZ = additional width of sliding sash for handle"},"H = Systemhöhe\nHF = Glashöhe Festflügel\nHS = Glashöhe Schiebeflügel\nHP = Höhe Profil\nLS = Länge Laufschiene/Blende\nLK = Länge Anschlag-/Schließkasten\nLW = Lichte Weite (bauseits)\nLWt = Lichte Weite (Durchgangsbreite)\nWF = Glasbreite Festflügel\nWS = Glasbreite Schiebeflügel (mit Griff)\nWFZ = Zusatzbreite Festflügel\nWSZ = Zusatzbreite Schiebeflügel für Griff","H = system height\nHF = glass height of sidelight\nHS = glass height of sliding sash\nHP = profile height\nLS = length of track/cover profile\nLK = length of door stop profiles\nLW = clear width (building)\nLWt = clear width (door passage)\nWF = glass width of sidelight\nWS = glass width of sliding sash (with handle)\nWFZ = additional width of sidelight\nWSZ = additional width of sliding sash for handle","H = hauteur du système\nHF = hauteur du verre du vantail fixe\nHS = hauteur du verre du vantail coulissant\nHP = hauteur du profilé\nLS = longueur du rail de roulement / du capot\nLK = longueur des profilés d'arrêt\nLW = largeur d'ouverture (baie)\nLWt = largeur de passage\nWF = largeur du verre du vantail fixe\nWS = largeur du verre du vantail coulissant (avec poignée)\nWFZ = largeur supplémentaire du vantail fixe\nWSZ = largeur supplémentaire du vantail coulissant pour poignée","H = altura total del sistema\nHF = altura de vidrio de la hoja fija\nHS = altura de vidrio de la hoja corredera\nHP = altura del perfil\nLS = longitud del riel de rodamiento/de la tapeta\nLK = longitud de los perfiles de tope\nLW = apertura útil (edificación)\nLWt = apertura útil (paso de la puerta)\nWF = ancho de vidrio de la hoja fija\nWS = ancho de vidrio de la hoja corredera (con pomo)\nWFZ = ancho adicional de la hoja fija\nWSZ = ancho adicional para pomo"]
[0]
["Note","Hinweis","Note","Remarque","Nota"]
["The weight of the sliding sash (including handles) must not exceed 120 kg.\n\nThe maximum height-width ratio of the sliding sash is 3:1.\n\nThe minimum width of the sliding sash is 580 mm.","Das Flügelgewicht des Schiebeflügels inkl. Griff darf 120 kg nicht überschreiten. \n\nDas Verhältnis von Höhe zu Breite des Schiebeflügels darf maximal 3 : 1 betragen.\n\nDer Schiebeflügel muss mindestens 580 mm breit sein.","The weight of the sliding sash (including handles) must not exceed 120 kg.\n\nThe maximum height-width ratio of the sliding sash is 3:1.\n\nThe minimum width of the sliding sash is 580 mm.","Le poid du vantail coulissant (poignée incl.) ne doit pas dépasser 120 kg.\n\nLe rapport hauteur/largeur maximal admissible du vantail coulissant est de 3 : 1.\n\nLe vantail coulissant doit avoir une largeur minimale de 580 mm.","El peso de la hoja corredera (pomo incluido) no debe superar los 120 kg.\n\nLa relación altura/ancho máxima permitida de la hoja corredera es de 3:1.\n\nEl ancho mínimo de la hoja corredera es de 580 mm.\n\n"]
["The weight of the sliding sashes (inluding handles) must not exceed 120 kg each.\n\nThe maximum height-width ratio of the sliding sashes is 3:1.\n\nThe minimum width of the sliding sashes is 580 mm each.","Das Flügelgewicht der Schiebeflügel inkl. Griff darf 120 kg nicht überschreiten. \n\nDas Verhältnis von Höhe zu Breite der Schiebeflügel darf maximal 3 : 1 betragen.\n\nDie Mindestbreite der Schiebeflügel darf 580 mm nicht unterschreiten.","The weight of the sliding sashes (inluding handles) must not exceed 120 kg each.\n\nThe maximum height-width ratio of the sliding sashes is 3:1.\n\nThe minimum width of the sliding sashes is 580 mm each.","Le poids des vantaux coulissants (poignées incl.) ne doit pas dépasser 120 kg chacun.\n\nLe rapport hauteur/largeur maximal admissible des vantaux coulissants est de 3 : 1.\n\nLes vvantaux coulissants doivent avoir une largeur minimale de 580 mm chacun.","El peso de las hojas correderas (pomos incluidos) no debe superar los 120 kg cada uno.\n\nLa relación altura/ancho máxima permitida de las hojas correderas es de 3:1.\n\nEl ancho mínimo de las hojas correderas es de 580 mm cada uno.\n"]
[{"$f":"IF($B$1=$B$3,B102,IF($B$1=$C$3,C102, IF($B$1=$D$3,D102, IF($B$1=$E$3,E102,\"Error!\"))))","v":0}]
["Willach will not assume any liability for any damages of any kind that might be resulting from the use of this profile and glass dimension calculator. (01.04.2021 - Rev. 0)","Willach übernimmt keine Haftung für eventuelle Schäden jeglicher Art, die aus der Benutzung dieses Profil- und Glasmaßrechners entstehen könnten. (02.03.2020 - Rev. 0)","Willach will not assume any liability for any damages of any kind that might be resulting from the use of this profile and glass dimension calculator. (01.04.2021 - Rev. 0)","Willach n'assume aucune responsabilité pour tout dommage de quelque nature que ce soit qui pourrait résulter de l'utilisation de ce calculateur de dimensions des profilés et vantaux. (01.04.2021 - Rev. 0)","Willach no asume ninguna responsabilidad por los daños de cualquier tipo que pudieran resultar del uso de este calculadora de perfiles y dimensiones. (02.03.2020 - Rev.0)"]
[0]
[0]
[0]
[0]
[0]
[0]
[0]

{"sheet":"Übersicht","index":1,"n_rows":24,"n_cols":16,"rows_kept":24,"cut":false,"hidden":false,"merged":[[25,0,25,16],[0,1,0,15],[0,17,1,17],[7,1,14,1],[16,1,23,1],[14,3,14,4],[14,6,14,7],[23,3,23,4],[23,12,23,13],[23,15,23,16],[16,3,16,4],[18,3,22,4],[7,3,7,4],[9,3,13,4],[7,6,7,7],[9,6,13,7],[18,15,22,16],[8,15,8,16],[17,15,17,16],[14,12,14,13],[14,15,14,16],[17,12,17,13],[9,12,13,13],[16,12,16,13],[18,12,22,13],[17,3,17,4],[5,3,5,10],[3,3,3,16],[7,9,7,10],[8,9,8,10],[9,9,13,10],[8,3,8,4],[8,12,8,13],[16,15,16,16],[5,12,5,16],[7,15,7,16],[9,15,13,16],[7,12,7,13],[8,6,8,7],[14,9,14,10]]}
[null,{"$f":"Übersetzungstabelle!$A$6","v":"Portavant G 120: profile and glass dimensions calculator"}]
[]
[]
[null,null,null,{"$f":"Übersetzungstabelle!$A$7","v":"Please select the appropriate category:"}]
[]
[null,null,null,{"$f":"Übersetzungstabelle!$A$8","v":"Installation situations without sidelight"},null,null,null,null,null,null,null,null,{"$f":"Übersetzungstabelle!$A$9","v":"Installation situations with sidelight"}]
[]
[null,{"$f":"Übersetzungstabelle!$A$15","v":"1-sided"},null,{"$f":"Übersetzungstabelle!$A$12","v":"Wall/\nCeiling mounting"},null,null,{"$f":"Übersetzungstabelle!$A$12","v":"Wall/\nCeiling mounting"},null,null,{"$f":"Übersetzungstabelle!$A$10","v":"Wall mounting"},null,null,{"$f":"Übersetzungstabelle!$A$13","v":"Ceiling mounting"},null,null,{"$f":"Übersetzungstabelle!$A$13","v":"Ceiling mounting"}]
[null,null,null,null,null,null,{"$f":"Übersetzungstabelle!$A$14","v":"with door stop\nprofiles"},null,null,{"$f":"Übersetzungstabelle!$A$11","v":"with door frame"},null,null,null,null,null,{"$f":"Übersetzungstabelle!$A$14","v":"with door stop\nprofiles"}]
[]
[]
[]
[]
[]
[null,null,null,{"$f":"Übersetzungstabelle!$A$17","v":"Select"},null,null,{"$f":"Übersetzungstabelle!$A$17","v":"Select"},null,null,{"$f":"Übersetzungstabelle!$A$17","v":"Select"},null,null,{"$f":"Übersetzungstabelle!$A$17","v":"Select"},null,null,{"$f":"Übersetzungstabelle!$A$17","v":"Select"}]
[]
[null,{"$f":"Übersetzungstabelle!$A$16","v":"2-sided"},null,{"$f":"Übersetzungstabelle!$A$12","v":"Wall/\nCeiling mounting"},null,null,null,null,null,null,null,null,{"$f":"Übersetzungstabelle!$A$13","v":"Ceiling mounting"}]
[]
[]
[]
[]
[]
[]
[null,null,null,{"$f":"Übersetzungstabelle!$A$17","v":"Select"},null,null,null,null,null,null,null,null,{"$f":"Übersetzungstabelle!$A$17","v":"Select"}]

{"sheet":"Wand-Decke_1-seitig","index":2,"n_rows":123,"n_cols":16,"rows_kept":123,"cut":false,"hidden":false,"merged":[[0,1,0,12],[0,15,1,16],[40,1,40,5],[40,7,40,12],[69,9,69,10],[58,1,58,5],[58,7,58,12],[60,9,60,10],[60,15,70,15],[62,9,62,10],[64,9,64,10],[67,8,67,11],[72,1,72,5],[79,8,79,9],[119,2,120,6],[41,15,50,15],[2,1,39,15],[89,0,89,15],[85,8,86,10],[75,15,87,15],[91,1,91,7],[122,0,122,15],[91,9,91,15],[92,9,92,15],[93,9,93,15],[94,9,94,15],[95,9,95,15],[96,9,96,15],[97,9,97,15],[98,9,98,15],[99,9,99,15],[100,9,100,15],[101,9,101,15],[113,9,113,15],[119,9,119,15],[120,9,120,15],[114,9,114,15],[115,9,115,15],[116,9,116,15],[117,9,117,15],[118,9,118,15],[66,3,67,3],[72,7,73,12],[81,8,81,12],[77,8,77,12],[112,9,112,15],[107,9,107,15],[108,9,108,15],[109,9,109,15],[110,9,110,15],[111,9,111,15],[102,9,102,15],[103,9,103,15],[104,9,104,15],[105,9,105,15],[106,9,106,15],[83,8,83,9]]}
[null,{"$f":"Übersetzungstabelle!$A$20","v":"Portavant G 120: wall/ceiling mounting without sidelight, one-sided (without door stop profiles and without door frame)"}]
[]
[]
[]
[]
[]
[]
[]
[]
[]
[]
[]
[]
[]
[]
[]
[]
[]
[]
[]
[]
[]
[]
[]
[]
[]
[]
[]
[]
[]
[]
[]
[]
[]
[]
[]
[]
[]
[]
[]
[null,"Systemmaße"]
[]
[null,null,"HSA","Höhenabzugsmaß Schiebeflügel",59,"(mm)"]
[]
[null,null,"UWo","Überlapp Wand öffnungsseitig",35,"(mm)"]
[]
[null,null,"UWs","Überlapp Wand schließseitig",35,"(mm)"]
[]
[null,null,"SMs","Spaltmaß schließseitig",3,"(mm)"]
[]
[null,null,"SMo","Spaltmaß öffnungsseitig",3,"(mm)"]
[]
[null,null,null,"Mindestbreite Schiebeflügel",580,"(mm)"]
[]
[null,null,null,"Mindest-LW",{"$f":"$E$53-$E$47-$E$45","v":510},"(mm)"]
[]
[]
[]
[null,{"$f":"Übersetzungstabelle!$A$27","v":"User input"},null,null,null,null,null,{"$f":"Übersetzungstabelle!$A$53","v":"Automatic calculation of glass dimensions and profile lengths"},null,null,null,null,null,null,null,{"$f":"Übersetzungstabelle!$A$91","v":"Legend"}]
[]
[null,null,"LW",{"$f":"Übersetzungstabelle!$A$35","v":"clear width (building)"},1000,"(mm)",null,null,"HS",{"$f":"Übersetzungstabelle!$A$57","v":"glass height of sliding sash"},null,{"$f":"E63-E43","v":2191},"(mm)",null,null,{"$f":"Übersetzungstabelle!$A$94","v":"H = system height\nHS = glass height of sliding sash\nLS = length of track/cover profile\nLW = clear width (building)\nLWt = clear width (door passage)\nWS = glass width of sliding sash (with handle)\nWSZ = additional width of sliding sash for handle"}]
[null,null,null,null,5996]
[null,null,"H",{"$f":"Übersetzungstabelle!$A$36","v":"system height"},2250,"(mm)",null,null,"WS",{"$f":"Übersetzungstabelle!$A$59","v":"glass width of sliding sash"},null,{"$f":"E61+E45+E47","v":1070},"(mm)"]
[]
[null,null,null,{"$f":"Übersetzungstabelle!$A$37","v":"glass thickness of sliding sash"},10,"(mm)",null,null,"LS",{"$f":"Übersetzungstabelle!$A$61","v":"length of track/cover profile"},null,{"$f":"2*L63-E67-E45+E49+E51","v":2011},"(mm)"]
[]
[null,null,"WSZ",{"$f":"Übersetzungstabelle!$A$40","v":"additional width of sliding sash\nfor handle"},100,"(mm)"]
[null,null,null,null,null,null,null,null,{"$f":"Übersetzungstabelle!$A$72","v":"For information:"}]
[]
[null,null,null,{"$f":"Übersetzungstabelle!$A$43","v":"weight of handle"},0.4,"(kg)",null,null,"LWt",{"$f":"Übersetzungstabelle!$A$73","v":"clear width (door passage)"},null,{"$f":"E61-E67","v":900},"(mm)"]
[]
[]
[null,{"$f":"Übersetzungstabelle!A$50","v":"Formulas"},null,null,null,null,null,{"$f":"Übersetzungstabelle!$A$80","v":"Check of sash weight, height-width ratio and\nminimum sash width"},null,null,null,null,null,null,null,{"$f":"Übersetzungstabelle!$A$99","v":"Note"}]
[]
[]
[null,null,"HS = H - 59",null,null,null,null,null,{"$f":"Übersetzungstabelle!$A$83","v":"Weight of sliding sash with handle (≤ 120 kg)"},null,{"$f":"L61/1000*L63/1000*2.5*ROUNDDOWN(E65,0)+E70","v":59.009250000000002},"(kg)",{"$f":"IF(K76<=120,Übersetzungstabelle!$A$81,Übersetzungstabelle!$A$82)","v":"Okay."},null,null,{"$f":"Übersetzungstabelle!$A$100","v":"The weight of the sliding sash (including handles) must not exceed 120 kg.\n\nThe maximum height-width ratio of the sliding sash is 3:1.\n\nThe minimum width of the sliding sash is 580 mm."}]
[]
[null,null,"WS = LW + 70",null,null,null,null,null,{"$f":"IF(K76>120,Übersetzungstabelle!$A$84,\"\")","v":""}]
[]
[null,null,"LS = 2 WS - WSZ - 29",null,null,null,null,null,{"$f":"Übersetzungstabelle!$A$85","v":"Height-width ratio of the sliding sash (≤ 3)"},null,{"$f":"L61/L63","v":2.0476635514018691},null,{"$f":"IF(K80<=3,Übersetzungstabelle!$A$81,Übersetzungstabelle!$A$82)","v":"Okay."}]
[]
[null,null,"LWt = LW - WSZ",null,null,null,null,null,{"$f":"IF(K80>3,Übersetzungstabelle!$A$87,\"\")","v":""}]
[]
[null,null,null,null,null,null,null,null,{"$f":"Übersetzungstabelle!$A$88","v":"Glass width of sliding sash (≥ 580 mm)"},null,{"$f":"L63","v":1070},"(mm)",{"$f":"IF(K84>=580,Übersetzungstabelle!$A$81,Übersetzungstabelle!$A$82)","v":"Okay."}]
[]
[null,null,null,null,null,null,null,null,{"$f":"IF(K84<580,Übersetzungstabelle!$A$89,\"\")","v":""}]
[]
[]
[]
[{"$f":"Übersetzungstabelle!$A$103","v":"Willach will not assume any liability for any damages of any kind that might be resulting from the use of this profile and glass dimension calculator. (01.04.2021 - Rev. 0)"}]
[]
[null,{"$f":"Übersetzungstabelle!$A$75","v":"Glass dimensions of sliding sash"},null,null,null,null,null,null,null,{"$f":"Übersetzungstabelle!$A$77","v":"Note"}]
[]
[]
[]
[]
[]
[]
[]
[]
[]
[]
[]
[]
[]
[]
[]
[]
[]
[]
[]
[]
[]
[]
[]
[]
[]
[]
[]
[null,null,{"$f":"Übersetzungstabelle!$A$76","v":"(Glass cutouts/drillings for handles and/or mechanical locks might probably\nbe required.)"}]
[]
[]
[{"$f":"Übersetzungstabelle!$A$103","v":"Willach will not assume any liability for any damages of any kind that might be resulting from the use of this profile and glass dimension calculator. (01.04.2021 - Rev. 0)"}]

{"sheet":"Wand-Decke_2-seitig","index":3,"n_rows":122,"n_cols":16,"rows_kept":122,"cut":false,"hidden":false,"merged":[[90,11,90,15],[82,8,82,9],[74,15,86,15],[0,15,1,16],[55,1,55,5],[55,7,55,12],[0,1,0,12],[40,1,40,5],[40,7,40,12],[41,15,48,15],[2,0,38,16],[71,7,72,12],[65,3,66,3],[121,0,121,15],[59,15,69,15],[84,8,85,10],[88,0,88,15],[71,1,71,5],[78,8,78,9],[66,8,66,11],[59,9,59,10],[61,9,61,10],[63,9,63,10],[76,8,76,10],[80,8,80,10],[68,9,68,10],[118,2,119,6],[118,11,119,15],[90,1,90,7]]}
[null,{"$f":"Übersetzungstabelle!$A$21","v":"Portavant G 120: wall/ceiling mounting without sidelight, two-sided"}]
[]
[]
[]
[]
[]
[]
[]
[]
[]
[]
[]
[]
[]
[]
[]
[]
[]
[]
[]
[]
[]
[]
[]
[]
[]
[]
[]
[]
[]
[]
[]
[]
[]
[]
[]
[]
[]
[]
[]
[null,"Systemmaße"]
[]
[null,null,"HSA","Höhenabzugsmaß Schiebeflügel",59,"(mm)"]
[]
[null,null,"UWo","Überlapp Wand öffnungsseitig",35,"(mm)"]
[]
[null,null,"SMs","Spaltmaß schließseitig",2,"(mm)"]
[]
[null,null,"SMo","Spaltmaß öffnungsseitig",3,"(mm)"]
[]
[null,null,null,"Mindestbreite Schiebeflügel",580,"(mm)"]
[]
[null,null,null,"Mindest-LW",{"$f":"2*(E51-E45+E47)","v":1094},"(mm)"]
[]
[]
[null,{"$f":"Übersetzungstabelle!$A$27","v":"User input"},null,null,null,null,null,{"$f":"Übersetzungstabelle!$A$53","v":"Automatic calculation of glass dimensions and profile lengths"},null,null,null,null,null,null,null,{"$f":"Übersetzungstabelle!$A$91","v":"Legend"}]
[]
[null,null,null,null,null,null,null,null,null,null,null,{"$f":"Übersetzungstabelle!$A$54","v":"Length in mm"},{"$f":"Übersetzungstabelle!$A$55","v":"Qty. in pcs."}]
[]
[null,null,"LW",{"$f":"Übersetzungstabelle!$A$35","v":"clear width (building)"},2000,"(mm)",null,null,"HS",{"$f":"Übersetzungstabelle!$A$57","v":"glass height of sliding sash"},null,{"$f":"E62-E43","v":2191},null,null,null,{"$f":"Übersetzungstabelle!$A$94","v":"H = system height\nHS = glass height of sliding sash\nLS = length of track/cover profile\nLW = clear width (building)\nLWt = clear width (door passage)\nWS = glass width of sliding sash (with handle)\nWSZ = additional width of sliding sash for handle"}]
[]
[null,null,"H",{"$f":"Übersetzungstabelle!$A$36","v":"system height"},2250,"(mm)",null,null,"WS",{"$f":"Übersetzungstabelle!$A$59","v":"glass width of sliding sash"},null,{"$f":"E60/2+(E45-E47)","v":1033},2]
[]
[null,null,null,{"$f":"Übersetzungstabelle!$A$37","v":"glass thickness of sliding sash"},10,"(mm)",null,null,"LS",{"$f":"Übersetzungstabelle!$A$61","v":"length of track/cover profile"},null,{"$f":"IF((4*L62-2*E66-E45*2+2*E47+2*E49)>5996,(4*L62-2*E66-E45*2+2*E47+2*E49)/2,4*L62-2*E66-E45*2+2*E47+2*E49)","v":3872},{"$f":"IF((4*L62-2*E66-E45*2+2*E47+2*E49)>5996,Übersetzungstabelle!$A$56&\" 2\",Übersetzungstabelle!$A$56&\" 1\")","v":"per 1"}]
[]
[null,null,"WSZ",{"$f":"Übersetzungstabelle!$A$40","v":"additional width of sliding sash\nfor handle"},100,"(mm)"]
[null,null,null,null,null,null,null,null,{"$f":"Übersetzungstabelle!$A$72","v":"For information:"}]
[]
[null,null,null,{"$f":"Übersetzungstabelle!$A$43","v":"weight of handle"},0.4,"(kg)",null,null,"LWt",{"$f":"Übersetzungstabelle!$A$73","v":"clear width (door passage)"},null,{"$f":"E60-2*E66","v":1800}]
[]
[]
[null,{"$f":"Übersetzungstabelle!$A$50","v":"Formulas"},null,null,null,null,null,{"$f":"Übersetzungstabelle!$A$80","v":"Check of sash weight, height-width ratio and\nminimum sash width"},null,null,null,null,null,null,null,{"$f":"Übersetzungstabelle!$A$99","v":"Note"}]
[]
[]
[null,null,"HS = H - 59",null,null,null,null,null,{"$f":"Übersetzungstabelle!$A$83","v":"Weight of sliding sash with handle (≤ 120 kg)"},null,{"$f":"L62/1000*L60/1000*(ROUNDDOWN(E64,0))*2.5+E69","v":56.982575000000004},"(kg)",{"$f":"IF(K75<=120,Übersetzungstabelle!$A$81,Übersetzungstabelle!$A$82)","v":"Okay."},null,null,{"$f":"Übersetzungstabelle!$A$101","v":"The weight of the sliding sashes (inluding handles) must not exceed 120 kg each.\n\nThe maximum height-width ratio of the sliding sashes is 3:1.\n\nThe minimum width of the sliding sashes is 580 mm each."}]
[]
[null,null,"WS = LW / 2 + 33",null,null,null,null,null,{"$f":"IF(K75>120,Übersetzungstabelle!$A$84,\"\")","v":""}]
[]
[null,null,"LS = 4 WS - 2 WSZ - 60",null,null,null,null,null,{"$f":"Übersetzungstabelle!$A$86","v":"Height-width ratio of the sliding sashes (≤ 3)"},null,{"$f":"L60/L62","v":2.1210067763794771},null,{"$f":"IF(K79<=3,Übersetzungstabelle!$A$81,Übersetzungstabelle!$A$82)","v":"Okay."}]
[]
[null,null,"LWt = LW - 2 WSZ",null,null,null,null,null,{"$f":"IF(K79>3,Übersetzungstabelle!$A$87,\"\")","v":""}]
[]
[null,null,null,null,null,null,null,null,{"$f":"Übersetzungstabelle!$A$88","v":"Glass width of sliding sash (≥ 580 mm)"},null,{"$f":"L62","v":1033},"(mm)",{"$f":"IF(K83>=580,Übersetzungstabelle!$A$81,Übersetzungstabelle!$A$82)","v":"Okay."}]
[null,null,null,null,null,null,null,null,{"$f":"IF(K83<580,Übersetzungstabelle!A89,\"\")","v":""}]
[null,null,null,null,null,null,null,null,{"$f":"IF($K$83<580,Übersetzungstabelle!$A$89,\"\")","v":""}]
[]
[]
[]
[{"$f":"Übersetzungstabelle!$A$103","v":"Willach will not assume any liability for any damages of any kind that might be resulting from the use of this profile and glass dimension calculator. (01.04.2021 - Rev. 0)"}]
[]
[null,{"$f":"Übersetzungstabelle!$A$75","v":"Glass dimensions of sliding sash"},null,null,null,null,null,null,null,{"$f":"Übersetzungstabelle!$A$77","v":"Note"},null,{"$f":"Übersetzungstabelle!$A$75","v":"Glass dimensions of sliding sash"}]
[]
[]
[]
[]
[]
[]
[]
[]
[]
[]
[]
[]
[]
[]
[]
[]
[]
[]
[]
[]
[]
[]
[]
[]
[]
[]
[]
[null,null,{"$f":"Übersetzungstabelle!$A$76","v":"(Glass cutouts/drillings for handles and/or mechanical locks might probably\nbe required.)"},null,null,null,null,null,null,null,null,{"$f":"Übersetzungstabelle!$A$76","v":"(Glass cutouts/drillings for handles and/or mechanical locks might probably\nbe required.)"}]
[]
[]
[{"$f":"Übersetzungstabelle!$A$103","v":"Willach will not assume any liability for any damages of any kind that might be resulting from the use of this profile and glass dimension calculator. (01.04.2021 - Rev. 0)"}]

{"sheet":"Decke_1-seitig_Festflügel","index":4,"n_rows":136,"n_cols":16,"rows_kept":136,"cut":false,"hidden":false,"merged":[[132,2,133,6],[132,11,133,15],[76,2,80,3],[76,4,80,4],[72,4,74,4],[62,9,62,10],[64,9,64,10],[67,9,67,10],[58,9,58,10],[60,9,60,10],[98,8,99,10],[72,2,74,3],[0,1,0,12],[0,15,1,16],[54,1,54,5],[54,7,54,12],[39,1,39,5],[2,0,38,16],[39,7,39,12],[40,15,51,15],[41,9,41,10],[43,9,43,10],[47,9,47,10],[49,8,49,11],[51,9,51,10],[56,9,56,10],[64,3,65,3],[67,3,68,3],[85,7,86,12],[135,0,135,15],[104,11,104,15],[104,1,104,7],[80,8,80,11],[56,15,82,15],[70,9,70,10],[102,0,102,15],[92,8,92,9],[96,8,96,9],[85,1,85,5],[90,8,90,10],[94,8,94,10],[88,15,100,15]]}
[null,{"$f":"Übersetzungstabelle!$A$22","v":"Portavant G 120: ceiling mounting with sidelight, one-sided (without door stop profiles)"}]
[]
[]
[]
[]
[]
[]
[]
[]
[]
[]
[]
[]
[]
[]
[]
[]
[]
[]
[]
[]
[]
[]
[]
[]
[]
[]
[]
[]
[]
[]
[]
[]
[]
[]
[]
[]
[]
[]
[null,"Systemmaße"]
[]
[null,null,"HSA","Höhenabzugsmaß Schiebeflügel",59,"(mm)"]
[]
[null,null,"HFA","Höhenabzugsmaß Festflügel",61,"(mm)"]
[]
[null,null,"WFA","Abzugsmaß Wandbefestigung",0,"(mm)"]
[]
[null,null,"UF","Überlapp Festflügel",35,"(mm)"]
[]
[null,null,"SMs","Spaltmaß schließseitig",3,"(mm)"]
[]
[null,null,"SMo","Spaltmaß öffnungsseitig",3,"(mm)"]
[]
[]
[null,{"$f":"Übersetzungstabelle!$A$27","v":"User input"},null,null,null,null,null,{"$f":"Übersetzungstabelle!$A$53","v":"Automatic calculation of glass dimensions and profile lengths"},null,null,null,null,null,null,null,{"$f":"Übersetzungstabelle!$A$91","v":"Legend"}]
[]
[null,null,"LW",{"$f":"Übersetzungstabelle!$A$35","v":"clear width (building)"},2000,"(mm)",null,null,"HS",{"$f":"Übersetzungstabelle!$A$57","v":"glass height of sliding sash"},null,{"$f":"$E$59-$E$42","v":2191},"(mm)",null,null,{"$f":"Übersetzungstabelle!$A$96","v":"H = system height\nHF = glass height of sidelight\nHS = glass height of sliding sash\nLS = length of track/cover profile\nLW = clear width (building)\nLWt = clear width (door passage)\nWF = glass width of sidelight\nWS = glass width of sliding sash (with handle)\nWFZ = additional width of sidelight\nWSZ = additional width of sliding sash for handle"}]
[]
[null,null,"H",{"$f":"Übersetzungstabelle!$A$36","v":"system height"},2250,"(mm)",null,null,"HF",{"$f":"Übersetzungstabelle!$A$58","v":"glass height of sidelight"},null,{"$f":"$E$59-$E$44","v":2189},"(mm)"]
[]
[null,null,null,{"$f":"Übersetzungstabelle!$A$37","v":"glass thickness of sliding sash"},10,"(mm)",null,null,"WS",{"$f":"Übersetzungstabelle!$A$59","v":"glass width of sliding sash"},null,{"$f":"0.5*(E57-E68+E65+E48-E50)","v":1064.5},"(mm)"]
[]
[null,null,null,{"$f":"Übersetzungstabelle!$A$39","v":"glass thickness of sidelight"},10,"(mm)",null,null,"WF",{"$f":"Übersetzungstabelle!$A$60","v":"glass width of sidelight"},null,{"$f":"$L$61-$E$65+$E$68-$E$46","v":967.5},"(mm)"]
[]
[null,null,"WSZ",{"$f":"Übersetzungstabelle!$A$40","v":"additional width of sliding sash\nfor handle"},100,"(mm)",null,null,"LS",{"$f":"Übersetzungstabelle!A61","v":"length of track/cover profile"},null,{"$f":"E57","v":2000},"(mm)"]
[]
[]
[null,null,"WFZ",{"$f":"Übersetzungstabelle!$A$42","v":"additional width of sidelight\n(≥ 3 mm)"},3,"(mm)",null,null,null,{"$f":"Übersetzungstabelle!$A$64","v":"length of infill profile"},null,{"$f":"$E$57-$L$63-$E$46","v":1032.5},"(mm)"]
[]
[]
[null,null,null,{"$f":"Übersetzungstabelle!$A$43","v":"weight of handle"},0.4,"(kg)",null,null,null,{"$f":"Übersetzungstabelle!$A$65","v":"length of floor-wall profile on the floor"},null,{"$f":"IF($F$73=0,0,$L$63)","v":967.5},"(mm)"]
[]
[null,null,{"$f":"Übersetzungstabelle!$A$44","v":"Would you like to use a floor-wall profile (U profile) horizontally on the floor?"},null,"Yes",{"$f":"IF($E$73=Übersetzungstabelle!$A$47,1,0)","v":1},null,null,null,{"$f":"Übersetzungstabelle!$A$67","v":"length of floor-wall profile on the wall"},null,{"$f":"IF($F$77=0,0,IF($F$73=0,$E$59-69,$E$59-69-16))","v":2165},"(mm)"]
[]
[null,null,null,null,null,null,null,null,null,{"$f":"Übersetzungstabelle!$A$69","v":"approx. length of silicone gasket type 1 (item no. 617 254…)"},null,{"$f":"IF(ROUNDDOWN($E$63,0)=10,$L$63,0)","v":967.5},"(mm)"]
[]
[null,null,{"$f":"Übersetzungstabelle!$A$45","v":"Would you like to use a floor-wall profile (U profile) vertically to attach the sidelight to the wall?"},null,"Yes",{"$f":"IF($E$77=Übersetzungstabelle!$A$47,1,0)","v":1},null,null,null,{"$f":"Übersetzungstabelle!$A$70","v":"approx. length of silicone gasket type 2 (item no. 617 255…)"},null,{"$f":"IF(ROUNDDOWN($E$63,0)=10,($L$73+$L$71)*2,0)","v":6265},"(mm)"]
[]
[null,null,null,null,null,null,null,null,null,{"$f":"Übersetzungstabelle!$A$71","v":"approx. length of silicone gasket type 3 (item no. 617 256…)"},null,{"$f":"IF(ROUNDDOWN($E$63,0)=12,($L$73+$L$71)*2+$L$63,0)","v":0},"(mm)"]
[null,null,null,null,null,{"$f":"IF($E$73=Übersetzungstabelle!$A$47,1,0)","v":1}]
[null,null,null,null,null,null,null,null,{"$f":"Übersetzungstabelle!$A$72","v":"For information:"}]
[]
[null,null,null,null,null,null,null,null,"LWt",{"$f":"Übersetzungstabelle!$A$73","v":"clear width (door passage)"},null,{"$f":"$E$57-$L$63-$E$65-$E$46","v":932.5},"(mm)"]
[]
[]
[null,{"$f":"Übersetzungstabelle!A50","v":"Formulas"},null,null,null,null,null,{"$f":"Übersetzungstabelle!$A$80","v":"Check of sash weight, height-width ratio and\nminimum sash width"},null,null,null,null,null,null,null,{"$f":"Übersetzungstabelle!$A$99","v":"Note"}]
[]
[]
[null,null,"HS = H - 59",null,null,null,null,null,{"$f":"Übersetzungstabelle!$A$83","v":"Weight of sliding sash with handle (≤ 120 kg)"},null,{"$f":"$L$57/1000*$L$61/1000*2.5*ROUNDDOWN($E$61,0)+$E$71","v":58.707987499999994},"(kg)",{"$f":"IF($K$89<=120,Übersetzungstabelle!$A$81,Übersetzungstabelle!$A$82)","v":"Okay."},null,null,{"$f":"Übersetzungstabelle!$A$100","v":"The weight of the sliding sash (including handles) must not exceed 120 kg.\n\nThe maximum height-width ratio of the sliding sash is 3:1.\n\nThe minimum width of the sliding sash is 580 mm."}]
[]
[null,null,"HF = H - 61",null,null,null,null,null,{"$f":"IF(K89>120,Übersetzungstabelle!$A$84,\"\")","v":""}]
[]
[null,null,"WS = (LW - WFZ + WSZ + 32) / 2",null,null,null,null,null,{"$f":"Übersetzungstabelle!$A$85","v":"Height-width ratio of the sliding sash (≤ 3)"},null,{"$f":"$L$57/$L$61","v":2.0582433067167685},null,{"$f":"IF($K$93<=3,Übersetzungstabelle!$A$81,Übersetzungstabelle!$A$82)","v":"Okay."}]
[]
[null,null,"WF = WFZ + WS - WSZ",null,null,null,null,null,{"$f":"IF(K93>3,Übersetzungstabelle!$A$87,\"\")","v":""}]
[]
[null,null,"LS = LW ",null,null,null,null,null,{"$f":"Übersetzungstabelle!$A$88","v":"Glass width of sliding sash (≥ 580 mm)"},null,{"$f":"$L$61","v":1064.5},"(mm)",{"$f":"IF($K$97>=580,Übersetzungstabelle!$A$81,Übersetzungstabelle!$A$82)","v":"Okay."}]
[]
[null,null,"LWt = LW - WF - WSZ",null,null,null,null,null,{"$f":"IF(K97<580,Übersetzungstabelle!$A$89,\"\")","v":""}]
[]
[]
[]
[{"$f":"Übersetzungstabelle!$A$103","v":"Willach will not assume any liability for any damages of any kind that might be resulting from the use of this profile and glass dimension calculator. (01.04.2021 - Rev. 0)"}]
[]
[null,{"$f":"Übersetzungstabelle!$A$75","v":"Glass dimensions of sliding sash"},null,null,null,null,null,null,null,{"$f":"Übersetzungstabelle!$A$77","v":"Note"},null,{"$f":"Übersetzungstabelle!$A$78","v":"Glass dimensions of sidelight"}]
[]
[]
[]
[]
[]
[]
[]
[]
[]
[]
[]
[]
[]
[]
[]
[]
[]
[]
[]
[]
[]
[]
[]
[]
[]
[]
[]
[null,null,{"$f":"Übersetzungstabelle!$A$76","v":"(Glass cutouts/drillings for handles and/or mechanical locks might probably\nbe required.)"}]
[]
[]
[{"$f":"Übersetzungstabelle!$A$103","v":"Willach will not assume any liability for any damages of any kind that might be resulting from the use of this profile and glass dimension calculator. (01.04.2021 - Rev. 0)"}]

{"sheet":"Decke_2-seitig_Festflügel","index":5,"n_rows":163,"n_cols":16,"rows_kept":163,"cut":false,"hidden":false,"merged":[[106,1,106,7],[106,11,106,15],[162,0,162,15],[87,1,87,5],[104,0,104,15],[94,8,94,9],[98,8,98,9],[92,8,92,10],[96,8,96,10],[100,8,101,10],[90,15,101,15],[132,2,133,5],[159,2,160,6],[87,7,88,12],[0,1,0,12],[0,15,1,16],[54,1,54,5],[54,7,54,12],[58,9,58,10],[72,9,72,10],[2,0,38,16],[58,15,84,15],[60,9,60,10],[62,9,62,10],[64,9,64,10],[66,9,66,10],[69,9,69,10],[74,2,76,3],[74,4,76,4],[82,8,82,11],[78,2,82,3],[78,4,82,4],[69,3,70,3],[66,3,67,3]]}
[null,{"$f":"Übersetzungstabelle!$A$23","v":"Portavant G 120: ceiling mounting with sidelight, two-sided"}]
[]
[]
[]
[]
[]
[]
[]
[]
[]
[]
[]
[]
[]
[]
[]
[]
[]
[]
[]
[]
[]
[]
[]
[]
[]
[]
[]
[]
[]
[]
[]
[]
[]
[]
[]
[]
[]
[]
[null,"Systemmaße"]
[]
[null,null,"HSA","Höhenabzugsmaß Schiebeflügel",59,"(mm)"]
[]
[null,null,"HFA","Höhenabzugsmaß Festflügel",61,"(mm)"]
[]
[null,null,"WFA","Abzugsmaß Wandbefestigung",0,"(mm)"]
[]
[null,null,"UF","Überlapp Festflügel",35,"(mm)"]
[]
[null,null,"SMs","Spaltmaß schließseitig",2,"(mm)"]
[]
[null,null,"SMo","Spaltmaß öffnungsseitig",3,"(mm)"]
[]
[]
[null,{"$f":"Übersetzungstabelle!$A$27","v":"User input"},null,null,null,null,null,{"$f":"Übersetzungstabelle!$A$53","v":"Automatic calculation of glass dimensions and profile lengths"},null,null,null,null,null,null,null,{"$f":"Übersetzungstabelle!$A$91","v":"Legend"}]
[]
[null,null,null,null,null,null,null,null,null,null,null,{"$f":"Übersetzungstabelle!$A$54","v":"Length in mm"},{"$f":"Übersetzungstabelle!$A$55","v":"Qty. in pcs."}]
[]
[null,null,"LW",{"$f":"Übersetzungstabelle!$A$35","v":"clear width (building)"},4000,"(mm)",null,null,"HS",{"$f":"Übersetzungstabelle!$A$57","v":"glass height of sliding sash"},null,{"$f":"E61-E42","v":2141},null,null,null,{"$f":"Übersetzungstabelle!$A$96","v":"H = system height\nHF = glass height of sidelight\nHS = glass height of sliding sash\nLS = length of track/cover profile\nLW = clear width (building)\nLWt = clear width (door passage)\nWF = glass width of sidelight\nWS = glass width of sliding sash (with handle)\nWFZ = additional width of sidelight\nWSZ = additional width of sliding sash for handle"}]
[]
[null,null,"H",{"$f":"Übersetzungstabelle!$A$36","v":"system height"},2200,"(mm)",null,null,"HF",{"$f":"Übersetzungstabelle!$A$58","v":"glass height of sidelight"},null,{"$f":"E61-E44","v":2139}]
[]
[null,null,null,{"$f":"Übersetzungstabelle!$A$37","v":"glass thickness of sliding sash"},10,"(mm)",null,null,"WS",{"$f":"Übersetzungstabelle!$A$59","v":"glass width of sliding sash"},null,{"$f":"(E59+2*(E67-E70+E48-E50))/4","v":1065},2]
[null,null,null,null,null,null,null,null,null,null,null,null,2]
[null,null,null,{"$f":"Übersetzungstabelle!$A$39","v":"glass thickness of sidelight"},10,"(mm)",null,null,"WF",{"$f":"Übersetzungstabelle!$A$60","v":"glass width of sidelight"},null,{"$f":"$L$63-$E$67+$E$70-$E$46","v":968},2]
[]
[null,null,"WSZ",{"$f":"Übersetzungstabelle!$A$40","v":"additional width of sliding sash\nfor handle"},100,"(mm)",null,null,"LS",{"$f":"Übersetzungstabelle!A61","v":"length of track/cover profile"},null,{"$f":"IF(E59>5996,E59/2,E59)","v":4000},{"$f":"IF(E59>5996,Übersetzungstabelle!$A$56&\" 2\",Übersetzungstabelle!$A$56&\" 1\")","v":"per 1"}]
[]
[]
[null,null,"WFZ",{"$f":"Übersetzungstabelle!$A$42","v":"additional width of sidelight\n(≥ 3 mm)"},3,"(mm)",null,null,null,{"$f":"Übersetzungstabelle!$A$64","v":"length of infill profile"},null,{"$f":"IF(($E$59-2*$L$65-$E$46)>2996,($E$59-2*$L$65-$E$46)/2,$E$59-2*$L$65-$E$46)","v":2064},{"$f":"IF(($E$59-2*$L$65-$E$46)>2996,2,1)","v":1}]
[]
[null,null,null,null,null,null,null,null,null,null,null,null,1]
[null,null,null,{"$f":"Übersetzungstabelle!$A$43","v":"weight of handle"},0.4,"(kg)",null,null,null,{"$f":"Übersetzungstabelle!$A$66","v":"lengths of floor-wall profiles on the floor"},null,{"$f":"IF($F$75=0,0,$L$65)","v":968},{"$f":"IF($F$75=0,\"\",2)","v":2}]
[null,null,null,null,null,null,null,null,null,null,null,null,2]
[null,null,{"$f":"Übersetzungstabelle!$A$44","v":"Would you like to use a floor-wall profile (U profile) horizontally on the floor?"},null,"Yes",{"$f":"IF(E75=Übersetzungstabelle!$A$47,1,0)","v":1},null,null,null,{"$f":"Übersetzungstabelle!$A$68","v":"lengths of floor-wall profiles on the wall"},null,{"$f":"IF($F$79=0,0,IF($F$75=0,$E$61-69,$E$61-69-16))","v":2115},{"$f":"IF($F$79=0,\"\",2)","v":2}]
[]
[null,null,null,null,null,null,null,null,null,{"$f":"Übersetzungstabelle!$A$69","v":"approx. length of silicone gasket type 1 (item no. 617 254…)"},null,{"$f":"IF(ROUNDDOWN($E$65,0)=10,2*$L$65,0)","v":1936}]
[]
[null,null,{"$f":"Übersetzungstabelle!$A$46","v":"Would you like to use a floor-wall profile (U profile) vertically to attach the sidelights to the wall?"},null,"Yes",{"$f":"IF(E79=Übersetzungstabelle!$A$47,1,0)","v":1},null,null,null,{"$f":"Übersetzungstabelle!$A$70","v":"approx. length of silicone gasket type 2 (item no. 617 255…)"},null,{"$f":"IF(ROUNDDOWN($E$65,0)=10,4*($L$75+$L$73),0)","v":12332}]
[]
[null,null,null,null,null,null,null,null,null,{"$f":"Übersetzungstabelle!$A$71","v":"approx. length of silicone gasket type 3 (item no. 617 256…)"},null,{"$f":"IF(ROUNDDOWN($E$65,0)=12,4*($L$75+$L$73)+2*$L$65,0)","v":0}]
[null,null,null,null,null,{"$f":"IF($E$76=Übersetzungstabelle!$A$47,1,0)","v":0}]
[null,null,null,null,null,null,null,null,{"$f":"Übersetzungstabelle!$A$72","v":"For information:"}]
[]
[null,null,null,null,null,null,null,null,"LWt",{"$f":"Übersetzungstabelle!$A$73","v":"clear width (door passage)"},null,{"$f":"$E$59-2*($L$65+$E$67)","v":1864}]
[]
[]
[null,{"$f":"Übersetzungstabelle!$A$50","v":"Formulas"},null,null,null,null,null,{"$f":"Übersetzungstabelle!$A$80","v":"Check of sash weight, height-width ratio and\nminimum sash width"},null,null,null,null,null,null,null,{"$f":"Übersetzungstabelle!$A$99","v":"Note"}]
[]
[]
[null,null,"HS = H - 59",null,null,null,null,null,{"$f":"Übersetzungstabelle!$A$83","v":"Weight of sliding sash with handle (≤ 120 kg)"},null,{"$f":"L59/1000*L63/1000*2.5*ROUNDDOWN(E63,0)+E73","v":57.404124999999993},"(kg)",{"$f":"IF(K91<=120,Übersetzungstabelle!$A$81,Übersetzungstabelle!$A$82)","v":"Okay."},null,null,{"$f":"Übersetzungstabelle!$A$100","v":"The weight of the sliding sash (including handles) must not exceed 120 kg.\n\nThe maximum height-width ratio of the sliding sash is 3:1.\n\nThe minimum width of the sliding sash is 580 mm."}]
[]
[null,null,"HF = H - 61",null,null,null,null,null,{"$f":"IF(K91>120,Übersetzungstabelle!A84,\"\")","v":""}]
[]
[null,null,"WS = (LW - 2 WFZ + 2 WSZ + 66) / 4",null,null,null,null,null,{"$f":"Übersetzungstabelle!$A$86","v":"Height-width ratio of the sliding sashes (≤ 3)"},null,{"$f":"L59/L63","v":2.0103286384976524},null,{"$f":"IF(K95<=3,Übersetzungstabelle!$A$81,Übersetzungstabelle!$A$82)","v":"Okay."}]
[]
[null,null,"WF = WFZ + WS - WSZ",null,null,null,null,null,{"$f":"IF(K95>3,Übersetzungstabelle!A87,\"\")","v":""}]
[]
[null,null,"LS = LW ",null,null,null,null,null,{"$f":"Übersetzungstabelle!$A$88","v":"Glass width of sliding sash (≥ 580 mm)"},null,{"$f":"L63","v":1065},"(mm)",{"$f":"IF(K99>=580,Übersetzungstabelle!$A$81,Übersetzungstabelle!$A$82)","v":"Okay."}]
[]
[null,null,"LWt = LW - 2 WF - 2 WSZ",null,null,null,null,null,{"$f":"IF(K99<580,Übersetzungstabelle!A89,\"\")","v":""}]
[]
[]
[]
[{"$f":"Übersetzungstabelle!$A$103","v":"Willach will not assume any liability for any damages of any kind that might be resulting from the use of this profile and glass dimension calculator. (01.04.2021 - Rev. 0)"}]
[]
[null,{"$f":"Übersetzungstabelle!$A$75","v":"Glass dimensions of sliding sash"},null,null,null,null,null,null,null,{"$f":"Übersetzungstabelle!$A$77","v":"Note"},null,{"$f":"Übersetzungstabelle!$A$78","v":"Glass dimensions of sidelight"}]
[]
[]
[]
[]
[]
[]
[]
[]
[]
[]
[]
[]
[]
[]
[]
[]
[]
[]
[]
[]
[]
[]
[]
[]
[]
[null,null,{"$f":"Übersetzungstabelle!$A$76","v":"(Glass cutouts/drillings for handles and/or mechanical locks might probably\nbe required.)"}]
[]
[]
[]
[]
[]
[]
[]
[]
[]
[]
[]
[]
[]
[]
[]
[]
[]
[]
[]
[]
[]
[]
[]
[]
[]
[]
[null,null,{"$f":"Übersetzungstabelle!$A$76","v":"(Glass cutouts/drillings for handles and/or mechanical locks might probably\nbe required.)"}]
[]
[]
[{"$f":"Übersetzungstabelle!$A$103","v":"Willach will not assume any liability for any damages of any kind that might be resulting from the use of this profile and glass dimension calculator. (01.04.2021 - Rev. 0)"}]

{"sheet":"Wand_mit_Zarge_1-seitig","index":6,"n_rows":125,"n_cols":16,"rows_kept":125,"cut":false,"hidden":false,"merged":[[41,15,50,15],[121,2,122,6],[0,1,0,12],[0,15,1,16],[2,1,39,15],[40,1,40,5],[40,7,40,12],[58,1,58,5],[58,7,58,12],[60,9,60,10],[60,15,72,15],[62,9,62,10],[64,9,64,10],[69,8,69,11],[71,9,71,10],[74,1,74,5],[81,8,81,9],[83,8,83,10],[85,8,85,9],[87,8,88,10],[74,7,75,12],[113,9,113,15],[85,2,88,4],[102,9,102,15],[91,0,91,15],[93,1,93,7],[93,9,93,15],[94,9,94,15],[95,9,95,15],[96,9,96,15],[97,9,97,15],[98,9,98,15],[99,9,99,15],[100,9,100,15],[101,9,101,15],[77,15,89,15],[79,8,79,10],[108,9,108,15],[109,9,109,15],[110,9,110,15],[111,9,111,15],[112,9,112,15],[68,3,69,3],[121,9,121,15],[122,9,122,15],[124,0,124,15],[115,9,115,15],[116,9,116,15],[117,9,117,15],[118,9,118,15],[119,9,119,15],[120,9,120,15],[114,9,114,15],[103,9,103,15],[104,9,104,15],[105,9,105,15],[106,9,106,15],[107,9,107,15]]}
[null,{"$f":"Übersetzungstabelle!$A$19","v":"Portavant G 120 : wall mounting with door frame, one-sided (without door stop profiles)"}]
[]
[]
[]
[]
[]
[]
[]
[]
[]
[]
[]
[]
[]
[]
[]
[]
[]
[]
[]
[]
[]
[]
[]
[]
[]
[]
[]
[]
[]
[]
[]
[]
[]
[]
[]
[]
[]
[]
[]
[null,"Systemmaße"]
[]
[null,null,"HSA","Höhenabzugsmaß Schiebeflügel",59,"(mm)"]
[]
[null,null,"UWo","Überlapp Wand öffnungsseitig",35,"(mm)"]
[]
[null,null,"UWs","Überlapp Wand schließseitig",35,"(mm)"]
[]
[null,null,"SMs","Spaltmaß schließseitig",3,"(mm)"]
[]
[null,null,"SMo","Spaltmaß öffnungsseitig",3,"(mm)"]
[]
[null,null,null,"Mindestbreite Schiebeflügel",580,"(mm)"]
[]
[null,null,null,"Mindest-LW",{"$f":"$E$53-$E$47-$E$45","v":510},"(mm)"]
[]
[]
[]
[null,{"$f":"Übersetzungstabelle!$A$27","v":"User input"},null,null,null,null,null,{"$f":"Übersetzungstabelle!$A$53","v":"Automatic calculation of glass dimensions and profile lengths"},null,null,null,null,null,null,null,{"$f":"Übersetzungstabelle!$A$91","v":"Legend"}]
[]
[null,null,"LW",{"$f":"Übersetzungstabelle!$A$35","v":"clear width (building)"},1000,"(mm)",null,null,"HS",{"$f":"Übersetzungstabelle!$A$57","v":"glass height of sliding sash"},null,{"$f":"E63-E43","v":2191},"(mm)",null,null,{"$f":"Übersetzungstabelle!$A$95","v":"H = system height\nHS = glass height of sliding sash\nHP = profile height\nHZ = upper edge of door frame\nLS = length of track/cover profile\nLW = clear width (building)\nLWt = clear width (door passage)\nWS = glass width of sliding sash (with handle)\nWSZ = additional width of sliding sash for handle\nZB = width of door frame"}]
[]
[null,null,"H",{"$f":"Übersetzungstabelle!$A$36","v":"system height"},2250,"(mm)",null,null,"WS",{"$f":"Übersetzungstabelle!$A$59","v":"glass width of sliding sash"},null,{"$f":"E61+E45+E47","v":1070},"(mm)"]
[null,null,0]
[null,null,null,{"$f":"Übersetzungstabelle!$A$37","v":"glass thickness of sliding sash"},10,"(mm)",null,null,"LS",{"$f":"Übersetzungstabelle!$A$62","v":"length of track/cover/spacer profile(s)"},null,{"$f":"2*L63-E69-E45-E47+E51+E67","v":2011},"(mm)"]
[null,null,0]
[null,null,"ZB",{"$f":"Übersetzungstabelle!$A$38","v":"width of door frame"},38,"(mm)"]
[]
[null,null,"WSZ",{"$f":"Übersetzungstabelle!$A$40","v":"additional width of sliding sash\nfor handle"},100,"(mm)"]
[null,null,null,null,null,null,null,null,{"$f":"Übersetzungstabelle!$A$72","v":"For information:"}]
[]
[null,null,null,{"$f":"Übersetzungstabelle!$A$43","v":"weight of handle"},0.4,"(kg)",null,null,"LWt",{"$f":"Übersetzungstabelle!$A$73","v":"clear width (door passage)"},null,{"$f":"E61-E69","v":900},"(mm)"]
[]
[]
[null,{"$f":"Übersetzungstabelle!A$50","v":"Formulas"},null,null,null,null,null,{"$f":"Übersetzungstabelle!$A$80","v":"Check of sash weight, height-width ratio and\nminimum sash width"},null,null,null,null,null,null,null,{"$f":"Übersetzungstabelle!$A$99","v":"Note"}]
[]
[]
[null,null,"HS = H - 59",null,null,null,null,null,{"$f":"Übersetzungstabelle!$A$83","v":"Weight of sliding sash with handle (≤ 120 kg)"},null,{"$f":"L61/1000*L63/1000*2.5*ROUNDDOWN(E65,0)+E72","v":59.009250000000002},"(kg)",{"$f":"IF(K78<=120,Übersetzungstabelle!$A$81,Übersetzungstabelle!$A$82)","v":"Okay."},null,null,{"$f":"Übersetzungstabelle!$A$100","v":"The weight of the sliding sash (including handles) must not exceed 120 kg.\n\nThe maximum height-width ratio of the sliding sash is 3:1.\n\nThe minimum width of the sliding sash is 580 mm."}]
[]
[null,null,"WS = LW + 70",null,null,null,null,null,{"$f":"IF(K78>120,Übersetzungstabelle!$A$84,\"\")","v":""}]
[]
[null,null,"LS = 2 WS - WSZ - 67 + ZB",null,null,null,null,null,{"$f":"Übersetzungstabelle!$A$85","v":"Height-width ratio of the sliding sash (≤ 3)"},null,{"$f":"L61/L63","v":2.0476635514018691},null,{"$f":"IF(K82<=3,Übersetzungstabelle!$A$81,Übersetzungstabelle!$A$82)","v":"Okay."}]
[]
[null,null,"LWt = LW - WSZ",null,null,null,null,null,{"$f":"IF(K82>3,Übersetzungstabelle!$A$87,\"\")","v":""}]
[]
[null,null,{"$f":"Übersetzungstabelle!A$51","v":"(The planning criteria to determine the number of spacer profiles required can be found in the article/price list.)"},null,null,null,null,null,{"$f":"Übersetzungstabelle!$A$88","v":"Glass width of sliding sash (≥ 580 mm)"},null,{"$f":"L63","v":1070},"(mm)",{"$f":"IF(K86>=580,Übersetzungstabelle!$A$81,Übersetzungstabelle!$A$82)","v":"Okay."}]
[]
[null,null,null,null,null,null,null,null,{"$f":"IF(K86<580,Übersetzungstabelle!$A$89,\"\")","v":""}]
[]
[]
[]
[{"$f":"Übersetzungstabelle!$A$103","v":"Willach will not assume any liability for any damages of any kind that might be resulting from the use of this profile and glass dimension calculator. (01.04.2021 - Rev. 0)"}]
[]
[null,{"$f":"Übersetzungstabelle!$A$75","v":"Glass dimensions of sliding sash"},null,null,null,null,null,null,null,{"$f":"Übersetzungstabelle!$A$77","v":"Note"}]
[]
[]
[]
[]
[]
[]
[]
[]
[]
[]
[]
[]
[]
[]
[]
[]
[]
[]
[]
[]
[]
[]
[]
[]
[]
[]
[]
[null,null,{"$f":"Übersetzungstabelle!$A$76","v":"(Glass cutouts/drillings for handles and/or mechanical locks might probably\nbe required.)"}]
[]
[]
[{"$f":"Übersetzungstabelle!$A$103","v":"Willach will not assume any liability for any damages of any kind that might be resulting from the use of this profile and glass dimension calculator. (01.04.2021 - Rev. 0)"}]

{"sheet":"Wand-Decke_1-seitig_Schliessk","index":7,"n_rows":126,"n_cols":16,"rows_kept":126,"cut":false,"hidden":false,"merged":[[122,9,122,15],[123,9,123,15],[125,0,125,15],[116,9,116,15],[117,9,117,15],[118,9,118,15],[119,9,119,15],[120,9,120,15],[121,9,121,15],[122,2,123,6],[115,9,115,15],[104,9,104,15],[105,9,105,15],[106,9,106,15],[107,9,107,15],[108,9,108,15],[109,9,109,15],[110,9,110,15],[111,9,111,15],[112,9,112,15],[113,9,113,15],[114,9,114,15],[103,9,103,15],[92,0,92,15],[94,1,94,7],[94,9,94,15],[95,9,95,15],[96,9,96,15],[97,9,97,15],[98,9,98,15],[99,9,99,15],[100,9,100,15],[101,9,101,15],[102,9,102,15],[75,1,75,5],[78,15,90,15],[80,8,80,10],[82,8,82,9],[84,8,84,10],[86,8,86,9],[88,8,89,10],[75,7,76,12],[41,15,52,15],[67,9,67,10],[0,1,0,12],[0,15,1,16],[2,1,39,15],[40,1,40,5],[40,7,40,12],[59,1,59,5],[59,7,59,12],[61,9,61,10],[61,15,73,15],[63,9,63,10],[65,9,65,10],[72,9,72,10],[67,3,68,3]]}
[null,{"$f":"Übersetzungstabelle!$A$24","v":"Portavant G 120: wall mounting, one-sided with door stop profiles"}]
[]
[]
[]
[]
[]
[]
[]
[]
[]
[]
[]
[]
[]
[]
[]
[]
[]
[]
[]
[]
[]
[]
[]
[]
[]
[]
[]
[]
[]
[]
[]
[]
[]
[]
[]
[]
[]
[]
[]
[null,"Systemmaße"]
[]
[null,null,"HSA","Höhenabzugsmaß Schiebeflügel",59,"(mm)"]
[]
[null,null,"HP","Höhe Profil",69,"(mm)"]
[]
[null,null,"UWo","Überlapp Wand öffnungsseitig",35,"(mm)"]
[]
[null,null,"UWs","Überlapp Wand schließseitig (PROFIL)",40,"(mm)"]
[]
[null,null,"SMs","Spaltmaß schließseitig",3,"(mm)"]
[]
[null,null,"SMo","Spaltmaß öffnungsseitig",3,"(mm)"]
[]
[null,null,null,"Mindestbreite Schiebeflügel",580,"(mm)"]
[]
[null,null,null,"Mindest-LW",{"$f":"$E$55-$E$47","v":545},"(mm)"]
[]
[]
[null,{"$f":"Übersetzungstabelle!$A$27","v":"User input"},null,null,null,null,null,{"$f":"Übersetzungstabelle!$A$53","v":"Automatic calculation of glass dimensions and profile lengths"},null,null,null,null,null,null,null,{"$f":"Übersetzungstabelle!$A$91","v":"Legend"}]
[]
[null,null,"LW",{"$f":"Übersetzungstabelle!$A$35","v":"clear width (building)"},1000,"(mm)",null,null,"HS",{"$f":"Übersetzungstabelle!$A$57","v":"glass height of sliding sash"},null,{"$f":"E64-E43","v":2141},"(mm)",null,null,{"$f":"Übersetzungstabelle!$A$92","v":"H = system height\nHS = glass height of sliding sash\nHP = profile height\nLS = length of track/cover profile\nLK = length of door stop profiles\nLW = clear width (building)\nLWt = clear width (door passage)\nWS = glass width of sliding sash (with handle)\nWSZ = additional width of sliding sash for handle"}]
[]
[null,null,"H",{"$f":"Übersetzungstabelle!$A$36","v":"system height"},2200,"(mm)",null,null,"WS",{"$f":"Übersetzungstabelle!$A$59","v":"glass width of sliding sash"},null,{"$f":"E62+E47","v":1035},"(mm)"]
[]
[null,null,null,{"$f":"Übersetzungstabelle!$A$37","v":"glass thickness of sliding sash"},10,"(mm)",null,null,"LS",{"$f":"Übersetzungstabelle!$A$61","v":"length of track/cover profile"},null,{"$f":"2*L64-E47-E68+E53+E49","v":1978},"(mm)"]
[]
[null,null,"WSZ",{"$f":"Übersetzungstabelle!$A$40","v":"additional width of sliding sash\nfor handle"},100,"(mm)",null,null,"LK",{"$f":"Übersetzungstabelle!$A$63","v":"length of door stop profiles"},null,{"$f":"E64-E45","v":2131},"(mm)"]
[]
[]
[null,null,null,{"$f":"Übersetzungstabelle!$A$43","v":"weight of handle"},0.4,"(kg)",null,null,{"$f":"Übersetzungstabelle!$A$72","v":"For information:"}]
[]
[null,null,null,null,null,null,null,null,"LWt",{"$f":"Übersetzungstabelle!$A$73","v":"clear width (door passage)"},null,{"$f":"E62-E68","v":900},"(mm)"]
[]
[]
[null,{"$f":"Übersetzungstabelle!A$50","v":"Formulas"},null,null,null,null,null,{"$f":"Übersetzungstabelle!$A$80","v":"Check of sash weight, height-width ratio and\nminimum sash width"},null,null,null,null,null,null,null,{"$f":"Übersetzungstabelle!$A$99","v":"Note"}]
[]
[]
[null,null,"HS = H - 59",null,null,null,null,null,{"$f":"Übersetzungstabelle!$A$83","v":"Weight of sliding sash with handle (≤ 120 kg)"},null,{"$f":"L62/1000*L64/1000*2.5*ROUNDDOWN(E66,0)+E71","v":55.798375},"(kg)",{"$f":"IF(K79<=120,Übersetzungstabelle!$A$81,Übersetzungstabelle!$A$82)","v":"Okay."},null,null,{"$f":"Übersetzungstabelle!$A$100","v":"The weight of the sliding sash (including handles) must not exceed 120 kg.\n\nThe maximum height-width ratio of the sliding sash is 3:1.\n\nThe minimum width of the sliding sash is 580 mm."}]
[]
[null,null,"WS = LW + 35",null,null,null,null,null,{"$f":"IF(K79>120,Übersetzungstabelle!$A$84,\"\")","v":""}]
[]
[null,null,"LS = 2 WS - WSZ + 8",null,null,null,null,null,{"$f":"Übersetzungstabelle!$A$85","v":"Height-width ratio of the sliding sash (≤ 3)"},null,{"$f":"L62/L64","v":2.0685990338164251},null,{"$f":"IF(K83<=3,Übersetzungstabelle!$A$81,Übersetzungstabelle!$A$82)","v":"Okay."}]
[]
[null,null,"LWt = LW - WSZ",null,null,null,null,null,{"$f":"IF(K83>3,Übersetzungstabelle!$A$87,\"\")","v":""}]
[]
[null,null,null,null,null,null,null,null,{"$f":"Übersetzungstabelle!$A$88","v":"Glass width of sliding sash (≥ 580 mm)"},null,{"$f":"L64","v":1035},"(mm)",{"$f":"IF(K87>=580,Übersetzungstabelle!$A$81,Übersetzungstabelle!$A$82)","v":"Okay."}]
[]
[null,null,null,null,null,null,null,null,{"$f":"IF(K87<580,Übersetzungstabelle!$A$89,\"\")","v":""}]
[]
[]
[]
[{"$f":"Übersetzungstabelle!$A$103","v":"Willach will not assume any liability for any damages of any kind that might be resulting from the use of this profile and glass dimension calculator. (01.04.2021 - Rev. 0)"}]
[]
[null,{"$f":"Übersetzungstabelle!$A$75","v":"Glass dimensions of sliding sash"},null,null,null,null,null,null,null,{"$f":"Übersetzungstabelle!$A$77","v":"Note"}]
[]
[]
[]
[]
[]
[]
[]
[]
[]
[]
[]
[]
[]
[]
[]
[]
[]
[]
[]
[]
[]
[]
[]
[]
[]
[]
[]
[null,null,{"$f":"Übersetzungstabelle!$A$76","v":"(Glass cutouts/drillings for handles and/or mechanical locks might probably\nbe required.)"}]
[]
[]
[{"$f":"Übersetzungstabelle!$A$103","v":"Willach will not assume any liability for any damages of any kind that might be resulting from the use of this profile and glass dimension calculator. (01.04.2021 - Rev. 0)"}]

{"sheet":"Decke_1-seitig_Schliessk","index":8,"n_rows":140,"n_cols":16,"rows_kept":140,"cut":false,"hidden":false,"merged":[[56,1,56,5],[56,7,56,12],[58,9,58,10],[58,15,86,15],[60,9,60,10],[62,9,62,10],[64,9,64,10],[66,9,66,10],[72,9,72,10],[74,2,76,3],[74,9,74,10],[0,1,0,12],[0,15,1,16],[39,1,39,5],[39,7,39,12],[53,9,53,10],[40,15,53,15],[41,9,41,10],[43,9,43,10],[49,9,49,10],[51,8,51,11],[2,1,38,16],[139,0,139,15],[89,1,89,5],[92,15,104,15],[94,8,94,10],[96,8,96,9],[98,8,98,10],[100,8,100,9],[102,8,103,10],[136,2,137,6],[89,7,90,12],[66,3,67,3],[69,3,70,3],[84,8,84,11],[106,0,106,15],[108,1,108,7],[108,11,108,15],[74,4,76,4],[78,2,82,3],[78,4,82,4],[69,9,69,10]]}
[null,{"$f":"Übersetzungstabelle!$A$25","v":"Portavant G 120: ceiling mounting with sidelight, one-sided with door stop profiles"}]
[]
[]
[]
[]
[]
[]
[]
[]
[]
[]
[]
[]
[]
[]
[]
[]
[]
[]
[]
[]
[]
[]
[]
[]
[]
[]
[]
[]
[]
[]
[]
[]
[]
[]
[]
[]
[]
[]
[null,"Systemmaße"]
[]
[null,null,"HSA","Höhenabzugsmaß Schiebeflügel",59,"(mm)"]
[]
[null,null,"HFA","Höhenabzugsmaß Festflügel",61,"(mm)"]
[]
[null,null,"HP","Höhe Profil",69,"(mm)"]
[]
[null,null,"WFA","Abzugsmaß Wandbefestigung",0,"(mm)"]
[]
[null,null,"UF","Überlapp Festflügel",35,"(mm)"]
[]
[null,null,"SMs","Spaltmaß schließseitig",40,"(mm)"]
[]
[null,null,"SMo","Spaltmaß öffnungsseitig",3,"(mm)"]
[]
[]
[null,{"$f":"Übersetzungstabelle!$A$27","v":"User input"},null,null,null,null,null,{"$f":"Übersetzungstabelle!$A$53","v":"Automatic calculation of glass dimensions and profile lengths"},null,null,null,null,null,null,null,{"$f":"Übersetzungstabelle!$A$91","v":"Legend"}]
[]
[null,null,"LW",{"$f":"Übersetzungstabelle!$A$35","v":"clear width (building)"},2000,"(mm)",null,null,"HS",{"$f":"Übersetzungstabelle!$A$57","v":"glass height of sliding sash"},null,{"$f":"$E$61-$E$42","v":2141},"(mm)",null,null,{"$f":"Übersetzungstabelle!$A$97","v":"H = system height\nHF = glass height of sidelight\nHS = glass height of sliding sash\nHP = profile height\nLS = length of track/cover profile\nLK = length of door stop profiles\nLW = clear width (building)\nLWt = clear width (door passage)\nWF = glass width of sidelight\nWS = glass width of sliding sash (with handle)\nWFZ = additional width of sidelight\nWSZ = additional width of sliding sash for handle"}]
[]
[null,null,"H",{"$f":"Übersetzungstabelle!$A$36","v":"system height"},2200,"(mm)",null,null,"HF",{"$f":"Übersetzungstabelle!$A$58","v":"glass height of sidelight"},null,{"$f":"$E$61-$E$44","v":2139},"(mm)"]
[]
[null,null,null,{"$f":"Übersetzungstabelle!$A$37","v":"glass thickness of sliding sash"},10,"(mm)",null,null,"WS",{"$f":"Übersetzungstabelle!$A$59","v":"glass width of sliding sash"},null,{"$f":"0.5*(E59-E70+E67+E50-E52)","v":1046},"(mm)"]
[]
[null,null,null,{"$f":"Übersetzungstabelle!$A$39","v":"glass thickness of sidelight"},10,"(mm)",null,null,"WF",{"$f":"Übersetzungstabelle!$A$60","v":"glass width of sidelight"},null,{"$f":"$L$63-$E$67+$E$70-$E$48","v":949},"(mm)"]
[]
[null,null,"WSZ",{"$f":"Übersetzungstabelle!$A$40","v":"additional width of sliding sash\nfor handle"},100,"(mm)",null,null,"LS",{"$f":"Übersetzungstabelle!A61","v":"length of track/cover profile"},null,{"$f":"E59","v":2000},"(mm)"]
[]
[]
[null,null,"WFZ",{"$f":"Übersetzungstabelle!$A$42","v":"additional width of sidelight\n(≥ 3 mm)"},3,"(mm)",null,null,"LK",{"$f":"Übersetzungstabelle!$A$63","v":"length of door stop profiles"},null,{"$f":"E61-E46","v":2131},"(mm)"]
[]
[]
[null,null,null,{"$f":"Übersetzungstabelle!$A$43","v":"weight of handle"},0.4,"(kg)",null,null,null,{"$f":"Übersetzungstabelle!$A$64","v":"length of infill profile"},null,{"$f":"$E$59-$L$65-$E$48","v":1051},"(mm)"]
[]
[null,null,{"$f":"Übersetzungstabelle!$A$44","v":"Would you like to use a floor-wall profile (U profile) horizontally on the floor?"},null,"Yes",null,null,null,null,{"$f":"Übersetzungstabelle!$A$65","v":"length of floor-wall profile on the floor"},null,{"$f":"IF($F$77=0,0,$L$65)","v":949},"(mm)"]
[]
[null,null,null,null,null,{"$f":"IF($E$75=Übersetzungstabelle!$A$47,1,0)","v":1},null,null,null,{"$f":"Übersetzungstabelle!$A$67","v":"length of floor-wall profile on the wall"},null,{"$f":"IF($F$81=0,0,IF($F$77=0,$E$61-69,$E$61-69-16))","v":2115},"(mm)"]
[]
[null,null,{"$f":"Übersetzungstabelle!$A$45","v":"Would you like to use a floor-wall profile (U profile) vertically to attach the sidelight to the wall?"},null,"Yes",null,null,null,null,{"$f":"Übersetzungstabelle!$A$69","v":"approx. length of silicone gasket type 1 (item no. 617 254…)"},null,{"$f":"IF(ROUNDDOWN($E$65,0)=10,$L$65,0)","v":949},"(mm)"]
[]
[null,null,null,null,null,{"$f":"IF($E$79=Übersetzungstabelle!$A$47,1,0)","v":1},null,null,null,{"$f":"Übersetzungstabelle!$A$70","v":"approx. length of silicone gasket type 2 (item no. 617 255…)"},null,{"$f":"IF(ROUNDDOWN($E$65,0)=10,($L$77+$L$75)*2,0)","v":6128},"(mm)"]
[]
[null,null,null,null,null,null,null,null,null,{"$f":"Übersetzungstabelle!$A$71","v":"approx. length of silicone gasket type 3 (item no. 617 256…)"},null,{"$f":"IF(ROUNDDOWN($E$65,0)=12,($L$77+$L$75)*2+$L$65,0)","v":0},"(mm)"]
[null,null,null,null,null,{"$f":"IF($E$75=Übersetzungstabelle!$A$47,1,0)","v":1}]
[null,null,null,null,null,null,null,null,{"$f":"Übersetzungstabelle!$A$72","v":"For information:"}]
[]
[null,null,null,null,null,null,null,null,"LWt",{"$f":"Übersetzungstabelle!$A$73","v":"clear width (door passage)"},null,{"$f":"$E$59-$L$65-$E$67-$E$48","v":951},"(mm)"]
[]
[]
[null,{"$f":"Übersetzungstabelle!A50","v":"Formulas"},null,null,null,null,null,{"$f":"Übersetzungstabelle!$A$80","v":"Check of sash weight, height-width ratio and\nminimum sash width"},null,null,null,null,null,null,null,{"$f":"Übersetzungstabelle!$A$99","v":"Note"}]
[]
[]
[null,null,"HS = H - 59",null,null,null,null,null,{"$f":"Übersetzungstabelle!$A$83","v":"Weight of sliding sash with handle (≤ 120 kg)"},null,{"$f":"$L$59/1000*$L$63/1000*2.5*ROUNDDOWN($E$63,0)+$E$73","v":56.387149999999991},"(kg)",{"$f":"IF($K$93<=120,Übersetzungstabelle!$A$81,Übersetzungstabelle!$A$82)","v":"Okay."},null,null,{"$f":"Übersetzungstabelle!$A$100","v":"The weight of the sliding sash (including handles) must not exceed 120 kg.\n\nThe maximum height-width ratio of the sliding sash is 3:1.\n\nThe minimum width of the sliding sash is 580 mm."}]
[]
[null,null,"HF = H - 61",null,null,null,null,null,{"$f":"IF(K93>120,Übersetzungstabelle!$A$84,\"\")","v":""}]
[]
[null,null,"WS = (LW - WFZ + WSZ - 5) / 2",null,null,null,null,null,{"$f":"Übersetzungstabelle!$A$85","v":"Height-width ratio of the sliding sash (≤ 3)"},null,{"$f":"$L$59/$L$63","v":2.0468451242829828},null,{"$f":"IF($K$97<=3,Übersetzungstabelle!$A$81,Übersetzungstabelle!$A$82)","v":"Okay."}]
[]
[null,null,"WF = WFZ + WS - WSZ",null,null,null,null,null,{"$f":"IF(K97>3,Übersetzungstabelle!$A$87,\"\")","v":""}]
[]
[null,null,"LS = LW ",null,null,null,null,null,{"$f":"Übersetzungstabelle!$A$88","v":"Glass width of sliding sash (≥ 580 mm)"},null,{"$f":"$L$63","v":1046},"(mm)",{"$f":"IF($K$101>=580,Übersetzungstabelle!$A$81,Übersetzungstabelle!$A$82)","v":"Okay."}]
[]
[null,null,"LK = H - HP",null,null,null,null,null,{"$f":"IF(K101<580,Übersetzungstabelle!$A$89,\"\")","v":""}]
[null,null,"LWt = LW - WF - WSZ - 40"]
[]
[]
[{"$f":"Übersetzungstabelle!$A$103","v":"Willach will not assume any liability for any damages of any kind that might be resulting from the use of this profile and glass dimension calculator. (01.04.2021 - Rev. 0)"}]
[]
[null,{"$f":"Übersetzungstabelle!$A$75","v":"Glass dimensions of sliding sash"},null,null,null,null,null,null,null,{"$f":"Übersetzungstabelle!$A$77","v":"Note"},null,{"$f":"Übersetzungstabelle!$A$78","v":"Glass dimensions of sidelight"}]
[]
[]
[]
[]
[]
[]
[]
[]
[]
[]
[]
[]
[]
[]
[]
[]
[]
[]
[]
[]
[]
[]
[]
[]
[]
[]
[]
[null,null,{"$f":"Übersetzungstabelle!$A$76","v":"(Glass cutouts/drillings for handles and/or mechanical locks might probably\nbe required.)"}]
[]
[]
[{"$f":"Übersetzungstabelle!$A$103","v":"Willach will not assume any liability for any damages of any kind that might be resulting from the use of this profile and glass dimension calculator. (01.04.2021 - Rev. 0)"}]